{"text_format":"3","workbook":"xlsx","n_sheets":3,"sheets":["Lista de Series y Subseries","CCD-V","Control de Versiones "],"not_rendered":{"images":2,"defined_names":2},"read":"whole","date_system":"1900"}

{"sheet":"Lista de Series y Subseries","index":0,"n_rows":197,"n_cols":6,"rows_kept":197,"hidden":true}
["SERIE","CODIGO","SUBSERIE ","CODIGO"]
["ACCIONES CONSTITUCIONALES",{"$f":"VLOOKUP(A2,$A$130:$B$207,2,0)","v":1},"Acciones De Cumplimiento",{"$f":"+CONCATENATE(B2,F2,E2)","v":"1.1"},1,"."]
["ACCIONES CONSTITUCIONALES",1,"Acciones De Habeas Corpus",{"$f":"+CONCATENATE(B3,F3,E3)","v":"1.2"},2,"."]
["ACCIONES CONSTITUCIONALES",1,"Acciones De Tutela","1.3",3,"."]
["ACCIONES CONSTITUCIONALES",1,"Acciones Populares","1.4",4,"."]
["ACTAS",2,"Actas de Comisión Interinstitucional de la Rama Judicial","2.1",1,"."]
["ACTAS",2,"Actas De Comité Académico","2.2",2,"."]
["ACTAS",2,"Actas De Comité De Bajas","2.3",3,"."]
["ACTAS",2,"Actas De Comité De Control Interno","2.4",4,"."]
["ACTAS",2,"Actas De Comité De Convivencia Laboral","2.5",5,"."]
["ACTAS",2,"Actas De Comité De Defensa Judicial Y Conciliación","2.6",6,"."]
["ACTAS",2,"Actas De Comité De Gobierno En Línea","2.7",7,"."]
["ACTAS",2,"Actas De Comité De Saneamiento Contable","2.8",8,"."]
["ACTAS",2,"Actas De Comité Paritario De Seguridad Y Salud En El Trabajo","2.9",9,"."]
["ACTAS",2,"Actas de Comité Sistema Integra de Gestión y Control de Calidad","2.10",10,"."]
["ACTAS",2,"Actas De Junta De Licitaciones","2.11",11,"."]
["ACTAS",2,"Actas De Reunión","2.12",12,"."]
["ACTAS",2,"Actas De Sala Administrativa","2.13",13,"."]
["ACTAS",2,"Actas De Sala Jurisdiccional Disciplinaria","2.14",14,"."]
["ACTAS",2,"Actas De Sorteo De Conjueces","2.15",15,"."]
["ACTOS ADMINISTRATIVOS",3,"Acuerdos","3.1",1,"."]
["ACTOS ADMINISTRATIVOS",3,"Resoluciones","3.2",2,"."]
["ANTEPROYECTO DE PRESUPUESTO",4]
["BOLETINES DE PRENSA",7]
["BOLETINES DIARIOS DE TESORERIA",8]
["BONOS PENSIONALES",9]
["CERTIFICACIONES",5,"Certificaciones Académicas","5.1",1,"."]
["CERTIFICACIONES",5,"Certificaciones Contractuales","5.2",2,"."]
["CERTIFICACIONES",5,"Certificaciones De Antecedentes Disciplinarios","5.3",3,"."]
["CERTIFICACIONES",5,"Certificaciones De Ingresos Y Retenciones","5.4",4,"."]
["CERTIFICACIONES",5,"Certificaciones De Paz Y Salvo","5.5",5,"."]
["CERTIFICACIONES",5,"Certificaciones Laborales","5.6",6,"."]
["CERTIFICADOS DE DISPONIBILIDAD PRESUPUESTAL",10,{"$nulls":3},"."]
["CIRCULARES",{"$f":"VLOOKUP(A34,$A$130:$B$207,2,0)","v":6},{"$nulls":3},"."]
["COMPROBANTES CONTABLES",11,"Comprobantes Contables De Egreso","11.1",1,"."]
["COMPROBANTES CONTABLES",11,"Comprobantes Contables De Ingreso","11.2",2,"."]
["COMPROBANTES DE ALMACÉN",12,"Comprobantes De Entrada Elementos A Almacén","12.1",1,"."]
["COMPROBANTES DE ALMACÉN",12,"Comprobantes De Salida De Elementos De Almacén","12.2",2,"."]
["CONCEPTOS",13,"Conceptos Jurídicos","13.1",1,"."]
["CONCILIACIONES BANCARIAS",14,{"$nulls":3},"."]
["CONCILIACIONES EXTRAJUDICIALES",15,{"$nulls":3},"."]
["CONCURSOS DE MÉRITOS",16,{"$nulls":3},"."]
["CONDECORACIONES",17,{"$nulls":3},"."]
["CONSTANCIAS SECRETARIALES",18,{"$nulls":3},"."]
["CONTRATOS",19,{"$nulls":3},"."]
["CONVENIOS",20,{"$nulls":3},"."]
["CORRESPONDENCIA",21,{"$nulls":3},"."]
["CUENTAS DE FONDOS ESPECIALES Y COBRO COACTIVO",22,{"$nulls":3},"."]
["DECLARACIONES TRIBUTARIAS",23,{"$nulls":3},"."]
["DEPÓSITOS JUDICIALES",24,{"$nulls":3},"."]
["DERECHOS DE PETICIÓN",25,{"$nulls":3},"."]
["EMBARGOS",26,{"$nulls":3},"."]
["ESTADOS FINANCIEROS",27,{"$nulls":3},"."]
["HISTORIALES DE BIENES INMUEBLES",28,{"$nulls":3},"."]
["HISTORIALES DE MAQUINARIA Y EQUIPOS",29,{"$nulls":3},"."]
["HISTORIALES DE VEHÍCULOS",30,{"$nulls":3},"."]
["HISTORIAS DE PRÁCTICANTES",31,{"$nulls":3},"."]
["HISTORIAS LABORALES",32,{"$nulls":3},"."]
["INFORMES",33,"Informes A Entes De Control","33.1",1,"."]
["INFORMES",33,"Informes A Otras Entidades","33.2",2,"."]
["INFORMES",33,"Informes De Auditoria","33.3",3,"."]
["INFORMES",33,"Informes de Pasantías","33.4",4,"."]
["INFORMES",33,"Informes De Gestión","33.5",5,"."]
["INFORMES",33,"Informes De Investigación Enfermedad Laboral","33.6",6,"."]
["INFORMES",33,"Informes De Siniestros","33.7",7,"."]
["INFORMES",{"$f":"VLOOKUP(A66,$A$130:$B$207,2,0)","v":33},"Informes Financieros","33.8",8,"."]
["INSTRUMENTOS ACADÉMICOS",34,{"$nulls":3},"."]
["INSTRUMENTOS DE CONTROL",35,"Instrumentos De Control De Comunicaciones Oficiales","35.1",1,"."]
["INSTRUMENTOS DE CONTROL",35,"Instrumentos De Control De Entrega De Documentos",{"$f":"+CONCATENATE(B69,F69,E69)","v":"35.2"},2,"."]
["INSTRUMENTOS DE CONTROL",35,"Instrumentos De Control Préstamos De Expedientes",{"$f":"+CONCATENATE(B70,F70,E70)","v":"35.3"},3,"."]
["INVENTARIOS",36,"Inventarios De Almacén","36.1",1,"."]
["INVENTARIOS",36,"Inventarios De Maquinaria Y Equipos","36.2",2,"."]
["INVENTARIOS",36,"Inventarios De Vehìculos","36.3",3,"."]
["INVENTARIOS",36,"Inventarios Generales De Bienes","36.4",4,"."]
["LIBROS CONTABLES AUXILIARES",37,{"$nulls":3},"."]
["LIBROS CONTABLES PRINCIPALES",38,"Libro Diario","38.1",1,"."]
["LIBROS CONTABLES PRINCIPALES",38,"Libro Mayor","38.2",2,"."]
["LIBROS DE CONTABILIDAD PRESUPUESTAL",39,{"$nulls":3},"."]
["LICENCIAS DE SOFTWARE",40,{"$nulls":3},"."]
["LICITACIONES",41,{"$nulls":3},"."]
["MANUALES",42,"Manuales De Procesos Y Procedimientos","42.1",1,"."]
["MANUALES",42,"Manuales Específicos De Funciones Y Competencias","42.2",2,"."]
["MEMORIAS DE EVENTOS ACADÉMICOS",43,{"$nulls":3},"."]
["NÓMINA",44,{"$nulls":3},"."]
["ORDENES DE COMPRA",45,{"$nulls":3},"."]
["ORDENES DE PAGO",46,{"$nulls":3},"."]
["ORDENES DE SERVICIO",47,{"$nulls":3},"."]
["PLANES",48,"Plan Nacional De Descongestion","48.1",1,"."]
["PLANES",48,"Planes De Acción","48.2",2,"."]
["PLANES",48,"Planes De Administración Del Riesgo","48.3",3,"."]
["PLANES",48,"Planes De Bienestar Social","48.4",4,"."]
["PLANES",48,"Planes de Compras","48.5",5,"."]
["PLANES",48,"Planes De Comunicaciones","48.6",6,"."]
["PLANES",48,"Planes De Emergencias","48.7",7,"."]
["PLANES",48,"Planes De Inversión","48.8",8,"."]
["PLANES",48,"Planes De Mejoramiento","48.9",9,"."]
["PLANES",48,"Planes Estratégicos De Tecnología","48.10",10,"."]
["PLANES",{"$f":"VLOOKUP(A98,$A$130:$B$207,2,0)","v":48},"Planes Institucionales De Capacitación","48.11",11,"."]
["PLANES",48,"Planes Operativos","48.12",12,"."]
["PLANES",{"$f":"VLOOKUP(A100,$A$130:$B$207,2,0)","v":48},"Planes Sectoriales De Desarrollo",{"$f":"+CONCATENATE(B100,F100,E100)","v":"48.13"},13,"."]
["PLANES",{"$f":"VLOOKUP(A101,$A$130:$B$207,2,0)","v":48},"Planes de Formación y Capacitación",{"$f":"+CONCATENATE(B101,F101,E101)","v":"48.14"},14,"."]
["PODERES",49,{"$nulls":3},"."]
["PROCESOS",50,"Procesos Contencioso Administrativos","50.1",1,"."]
["PROCESOS",50,"Procesos De Cobro Coactivo","50.2",2,"."]
["PROCESOS",50,"Procesos Disciplinarios","50.3",3,"."]
["PROCESOS",50,"Procesos Laborales","50.4",4,"."]
["PROCESOS",50,"Procesos Penales","50.5",5,"."]
["PROCESOS CONTRACTUALES NO ADJUDICADOS",51,{"$nulls":3},"."]
["PROCESOS DE SELECCIÓN DE PERSONAL",52,{"$nulls":3},"."]
["PROGRAMAS",53,"Programas Anuales Mensualizados De Caja Pac","53.1",1,"."]
["PROGRAMAS",53,"Programas De Mantenimiento","53.2",2,"."]
["PROGRAMAS",53,"Programas De Salud En El Trabajo ","53.3",3,"."]
["PROTOCOLOS",54,{"$nulls":3},"."]
["PROVIDENCIAS",55,{"$nulls":3},"."]
["PROYECTOS",56,"Proyectos De Inversión","56.1",1,"."]
["PUBLICACIONES INSTITUCIONALES",57,{"$nulls":3},"."]
["REGISTROS DE CONSULTAS JURISPRUDENCIALES",58,{"$nulls":3},"."]
["REGISTROS DE CONTROL DE RESOLUCIONES",59,{"$nulls":3},"."]
["REGISTROS DE DEVOLUCIÓN SUMAS DE DINERO",60,{"$nulls":3},"."]
["REGISTROS DE INGRESO AL EDIFICIO",61,{"$nulls":3},"."]
["REGISTROS DE OPERACIONES DE CAJA MENOR",62,{"$nulls":3},"."]
["REGISTROS DE PROCESOS",63,{"$nulls":3},"."]
["REGISTROS DE PROYECTOS POR DESPACHOS",64,{"$nulls":3},"."]
["REGISTROS DE SERVICIOS DE TRANSPORTES",65,{"$nulls":3},"."]
["REGISTROS DE SOLICITUDES CUMPLIDAS",66,{"$nulls":3},"."]
["REGISTROS ENTREGA DE VEHÍCULOS",67,{"$nulls":3},"."]
["TÍTULOS JUDICIALES",68,{"$nulls":3},"."]
[]
["SERIE"]
["ACCIONES CONSTITUCIONALES",1]
["ACTAS",2]
["ACTOS ADMINISTRATIVOS",3]
["ANTEPROYECTO DE PRESUPUESTO",4]
["CERTIFICACIONES",5]
["CIRCULARES",6]
["BOLETINES DE PRENSA",7]
["BOLETINES DIARIOS DE TESORERIA",8]
["BONOS PENSIONALES",9]
["CERTIFICADOS DE DISPONIBILIDAD PRESUPUESTAL",10]
["COMPROBANTES CONTABLES",11]
["COMPROBANTES DE ALMACÉN",12]
["CONCEPTOS",13]
["CONCILIACIONES BANCARIAS",14]
["CONCILIACIONES EXTRAJUDICIALES",15]
["CONCURSOS DE MÉRITOS",16]
["CONDECORACIONES",17]
["CONSTANCIAS SECRETARIALES",18]
["CONTRATOS",19]
["CONVENIOS",20]
["CORRESPONDENCIA",21]
["CUENTAS DE FONDOS ESPECIALES Y COBRO COACTIVO",22]
["DECLARACIONES TRIBUTARIAS",23]
["DEPÓSITOS JUDICIALES",24]
["DERECHOS DE PETICIÓN",25]
["EMBARGOS",26]
["ESTADOS FINANCIEROS",27]
["HISTORIALES DE BIENES INMUEBLES",28]
["HISTORIALES DE MAQUINARIA Y EQUIPOS",29]
["HISTORIALES DE VEHÍCULOS",30]
["HISTORIAS DE PRÁCTICANTES",31]
["HISTORIAS LABORALES",32]
["INFORMES",33]
["INSTRUMENTOS ACADÉMICOS",34]
["INSTRUMENTOS DE CONTROL",35]
["INVENTARIOS",36]
["LIBROS CONTABLES AUXILIARES",37]
["LIBROS CONTABLES PRINCIPALES",38]
["LIBROS DE CONTABILIDAD PRESUPUESTAL",39]
["LICENCIAS DE SOFTWARE",40]
["LICITACIONES",41]
["MANUALES",42]
["MEMORIAS DE EVENTOS ACADÉMICOS",43]
["NÓMINA",44]
["ORDENES DE COMPRA",45]
["ORDENES DE PAGO",46]
["ORDENES DE SERVICIO",47]
["PLANES",48]
["PODERES",49]
["PROCESOS",50]
["PROCESOS CONTRACTUALES NO ADJUDICADOS",51]
["PROCESOS DE SELECCIÓN DE PERSONAL",52]
["PROGRAMAS",53]
["PROTOCOLOS",54]
["PROVIDENCIAS",55]
["PROYECTOS",56]
["PUBLICACIONES INSTITUCIONALES",57]
["REGISTROS DE CONSULTAS JURISPRUDENCIALES",58]
["REGISTROS DE CONTROL DE RESOLUCIONES",59]
["REGISTROS DE DEVOLUCIÓN SUMAS DE DINERO",60]
["REGISTROS DE INGRESO AL EDIFICIO",61]
["REGISTROS DE OPERACIONES DE CAJA MENOR",62]
["REGISTROS DE PROCESOS",63]
["REGISTROS DE PROYECTOS POR DESPACHOS",64]
["REGISTROS DE SERVICIOS DE TRANSPORTES",65]
["REGISTROS DE SOLICITUDES CUMPLIDAS",66]
["REGISTROS ENTREGA DE VEHÍCULOS",67]
["TÍTULOS JUDICIALES",68]

{"sheet":"CCD-V","index":1,"n_rows":205,"n_cols":14,"rows_kept":205,"merged":[[1,0,2,3],[1,4,1,15],[2,4,2,15]]}
[]
[{"$nulls":4},"CUADRO DE CLASIFICACIÓN DOCUMENTAL - CCD"]
[{"$nulls":4},"CONSEJO SUPERIOR DE LA JUDICATURA\nNÚMERO PERIODO INSTITUCIONAL: 5\nFECHAS EXTREMAS: 01 DE JULIO DE 2015 AL 31 DE DICIEMBRE DE 2018"]
[]
["Versión: 2024"]
[]
["No.","CÓDIGO\nSECCIÓN","SECCIÓN","CÓDIGO SUBSECCIÓN 1","SUBSECCIÓN 1","CÓDIGO SUBSECCIÓN 2","SUBSECCIÓN 2","CÓDIGO SUBSECCIÓN 3","SUBSECCIÓN 3","CÓDIGO SERIE","SERIE","CÓDIGO SUBSERIE ","SUBSERIE ","NORMATIVIDAD APLICABLE"]
[1,"110000-V","PRESIDENCIA DEL CONSEJO",{"$nulls":6},"02","ACTAS","02.01","Actas de Comisión Interinstitucional de la Rama Judicial","Ley 270 De 1996. Artículo 96. De la Comisión Interinstitucional de la Rama Judicial. Habrá una Comisión Interinstitucional de la Rama Judicial integrada por los presidentes de la Corte Suprema de Justicia, la Corte Constitucional, del Consejo de Estado, del Consejo Superior de la Judicatura, el Fiscal General de la Nación y un representante de los funcionarios y empleados de la Rama elegido por éstos en la forma que señale el reglamento. Dicha comisión servirá de mecanismo de información recíproca entre las Corporaciones judiciales y de foro para la discusión de los asuntos que interesen a la administración de justicia. La comisión será presidida por el Presidente del Consejo Superior de la Judicatura y se reunirá en forma ordinaria cuando menos una vez al mes, previa convocatoria de dicho funcionario. Se reunirá extraordinariamente cuando así lo requiera o a solicitud de cuando menos dos de sus miembros. Su no convocatoria constituirá causal de mala conducta."]
[2,"110000-V","PRESIDENCIA DEL CONSEJO",{"$nulls":6},12,"COMUNICACIONES OFICIALES ",null,null,"Ley 270 De 1996. Artículo 96. De la Comisión Interinstitucional de la Rama Judicial. Habrá una Comisión Interinstitucional de la Rama Judicial integrada por los presidentes de la Corte Suprema de Justicia, la Corte Constitucional, del Consejo de Estado, del Consejo Superior de la Judicatura, el Fiscal General de la Nación y un representante de los funcionarios y empleados de la Rama elegido por éstos en la forma que señale el reglamento. Dicha comisión servirá de mecanismo de información recíproca entre las Corporaciones judiciales y de foro para la discusión de los asuntos que interesen a la administración de justicia. La comisión será presidida por el Presidente del Consejo Superior de la Judicatura y se reunirá en forma ordinaria cuando menos una vez al mes, previa convocatoria de dicho funcionario. Se reunirá extraordinariamente cuando así lo requiera o a solicitud de cuando menos dos de sus miembros. Su no convocatoria constituirá causal de mala conducta."]
[3,"110000-V","PRESIDENCIA DEL CONSEJO","111000-V","DESPACHO DEL PRESIIDENTE"]
[4,"110000-V","PRESIDENCIA DEL CONSEJO","112000-V","UNIDAD DE CONTROL INTERNO",{"$nulls":4},"02","ACTAS","02.05","Actas de Comité de Control Interno","Acuerdo No. 74 de 1996 “Por el cual se da cumplimiento al artículo 199 inciso primero de la Ley 270 de 1996”, Consejo Superior de la Judicatura Sala Administrativa, artículo 7 1996."]
[5,"110000-V","PRESIDENCIA DEL CONSEJO","113000-V","DIVISIÓN DE DIVULGACIÓN Y PRENSA"]
[6,"130000-V","SALA ADMINISTRATIVA",{"$nulls":6},"01","ACCIONES CONSTITUCIONALES","01.02","Acciones de Tutela","Acuerdo No. 74 de 1996 “Por el cual se da cumplimiento al artículo 199 inciso primero de la Ley 270 de 1996”, Consejo Superior de la Judicatura Sala Administrativa, artículo 7 1996."]
[7,"130000-V","SALA ADMINISTRATIVA",{"$nulls":6},"02","ACTAS","02.11","Actas de Sala Administrativa","Acuerdo No. 74 de 1996 “Por el cual se da cumplimiento al artículo 199 inciso primero de la Ley 270 de 1996”, Consejo Superior de la Judicatura Sala Administrativa, artículo 7 1996."]
[8,"130000-V","SALA ADMINISTRATIVA",{"$nulls":6},"03","ACTOS ADMINISTRATIVOS","03.01","Acuerdos","Acuerdo No. 74 de 1996 “Por el cual se da cumplimiento al artículo 199 inciso primero de la Ley 270 de 1996”, Consejo Superior de la Judicatura Sala Administrativa, artículo 7 1996."]
[9,"130000-V","SALA ADMINISTRATIVA",{"$nulls":6},"03","ACTOS ADMINISTRATIVOS","03.02","Resoluciones","Acuerdo No. 74 de 1996 “Por el cual se da cumplimiento al artículo 199 inciso primero de la Ley 270 de 1996”, Consejo Superior de la Judicatura Sala Administrativa, artículo 7 1996."]
[10,"130000-V","SALA ADMINISTRATIVA",{"$nulls":6},"10","CIRCULARES",null,null,"Acuerdo No. 74 de 1996 “Por el cual se da cumplimiento al artículo 199 inciso primero de la Ley 270 de 1996”, Consejo Superior de la Judicatura Sala Administrativa, artículo 7 1996."]
[11,"130000-V","SALA ADMINISTRATIVA",{"$nulls":6},12,"COMUNICACIONES OFICIALES ",null,null,"Acuerdo No. 74 de 1996 “Por el cual se da cumplimiento al artículo 199 inciso primero de la Ley 270 de 1996”, Consejo Superior de la Judicatura Sala Administrativa, artículo 7 1996."]
[12,"130000-V","SALA ADMINISTRATIVA",{"$nulls":6},"18","DERECHOS DE PETICIÓN",null,null,"Acuerdo No. 74 de 1996 “Por el cual se da cumplimiento al artículo 199 inciso primero de la Ley 270 de 1996”, Consejo Superior de la Judicatura Sala Administrativa, artículo 7 1996."]
[13,"130000-V","SALA ADMINISTRATIVA",{"$nulls":6},"24","INFORMES","24.04","Informes de Gestión","Acuerdo No. 74 de 1996 “Por el cual se da cumplimiento al artículo 199 inciso primero de la Ley 270 de 1996”, Consejo Superior de la Judicatura Sala Administrativa, artículo 7 1996."]
[14,"130000-V","SALA ADMINISTRATIVA",{"$nulls":6},"25","INSTRUMENTOS DE CONTROL DE COMUNICACIONES OFICIALES",null,null,"Acuerdo No. 74 de 1996 “Por el cual se da cumplimiento al artículo 199 inciso primero de la Ley 270 de 1996”, Consejo Superior de la Judicatura Sala Administrativa, artículo 7 1996."]
[15,"130000-V","SALA ADMINISTRATIVA","131000-V","PRESIDENCIA DE LA SALA"]
[16,"130000-V","SALA ADMINISTRATIVA","132000-V","UNIDAD DE DESARROLLO Y ANÁLISIS ESTADÍSTICO",{"$nulls":4},12,"COMUNICACIONES OFICIALES ",null,null,"Acuerdo No. 74 de 1996 “Por el cual se da cumplimiento al artículo 199 inciso primero de la Ley 270 de 1996”, Consejo Superior de la Judicatura Sala Administrativa, artículo 7 1996."]
[17,"130000-V","SALA ADMINISTRATIVA","132000-V","UNIDAD DE DESARROLLO Y ANÁLISIS ESTADÍSTICO",{"$nulls":4},"18","DERECHOS DE PETICIÓN",null,null,"Acuerdo No. 74 de 1996 “Por el cual se da cumplimiento al artículo 199 inciso primero de la Ley 270 de 1996”, Consejo Superior de la Judicatura Sala Administrativa, artículo 7 1996."]
[18,"130000-V","SALA ADMINISTRATIVA","132000-V","UNIDAD DE DESARROLLO Y ANÁLISIS ESTADÍSTICO",{"$nulls":4},"24","INFORMES","24.04","Informes de gestión","Acuerdo No. 74 de 1996 “Por el cual se da cumplimiento al artículo 199 inciso primero de la Ley 270 de 1996”, Consejo Superior de la Judicatura Sala Administrativa, artículo 7 1996."]
[19,"130000-V","SALA ADMINISTRATIVA","132000-V","UNIDAD DE DESARROLLO Y ANÁLISIS ESTADÍSTICO",{"$nulls":4},"30","MANUALES DE PROCESOS Y PROCEDIMIENTOS",null,null,"Acuerdo No. 74 de 1996 “Por el cual se da cumplimiento al artículo 199 inciso primero de la Ley 270 de 1996”, Consejo Superior de la Judicatura Sala Administrativa, artículo 7 1996."]
[20,"130000-V","SALA ADMINISTRATIVA","132000-V","UNIDAD DE DESARROLLO Y ANÁLISIS ESTADÍSTICO",{"$nulls":4},"36","PLANES","36.02","Planes Administración Riesgos","Acuerdo No. 74 de 1996 “Por el cual se da cumplimiento al artículo 199 inciso primero de la Ley 270 de 1996”, Consejo Superior de la Judicatura Sala Administrativa, artículo 7 1996."]
[21,"130000-V","SALA ADMINISTRATIVA","132000-V","UNIDAD DE DESARROLLO Y ANÁLISIS ESTADÍSTICO",{"$nulls":4},"36","PLANES","36.10","Planes Sectoriales de Desarrollo","Acuerdo No. 74 de 1996 “Por el cual se da cumplimiento al artículo 199 inciso primero de la Ley 270 de 1996”, Consejo Superior de la Judicatura Sala Administrativa, artículo 7 1996."]
[22,"130000-V","SALA ADMINISTRATIVA","132000-V","UNIDAD DE DESARROLLO Y ANÁLISIS ESTADÍSTICO","132100-V","DIVISIÓN ESTADÍSTICA",null,null,12,"COMUNICACIONES OFICIALES ",null,null,"Acuerdo No. 74 de 1996 “Por el cual se da cumplimiento al artículo 199 inciso primero de la Ley 270 de 1996”, Consejo Superior de la Judicatura Sala Administrativa, artículo 7 1996."]
[23,"130000-V","SALA ADMINISTRATIVA","132000-V","UNIDAD DE DESARROLLO Y ANÁLISIS ESTADÍSTICO","132100-V","DIVISIÓN ESTADÍSTICA",null,null,"18","DERECHOS DE PETICIÓN",null,null,"Acuerdo No. 74 de 1996 “Por el cual se da cumplimiento al artículo 199 inciso primero de la Ley 270 de 1996”, Consejo Superior de la Judicatura Sala Administrativa, artículo 7 1996."]
[24,"130000-V","SALA ADMINISTRATIVA","132000-V","UNIDAD DE DESARROLLO Y ANÁLISIS ESTADÍSTICO","132100-V","DIVISIÓN ESTADÍSTICA",null,null,"19","ESTADISTÍCAS",null,null,"Acuerdo No. 74 de 1996 “Por el cual se da cumplimiento al artículo 199 inciso primero de la Ley 270 de 1996”, Consejo Superior de la Judicatura Sala Administrativa, artículo 7 1996."]
[25,"130000-V","SALA ADMINISTRATIVA","132000-V","UNIDAD DE DESARROLLO Y ANÁLISIS ESTADÍSTICO","132100-V","DIVISIÓN ESTADÍSTICA",null,null,"24","INFORMES","24.04","Informes de gestión","Acuerdo No. 74 de 1996 “Por el cual se da cumplimiento al artículo 199 inciso primero de la Ley 270 de 1996”, Consejo Superior de la Judicatura Sala Administrativa, artículo 7 1996."]
[26,"130000-V","SALA ADMINISTRATIVA","132000-V","UNIDAD DE DESARROLLO Y ANÁLISIS ESTADÍSTICO","132100-V","DIVISIÓN ESTADÍSTICA","132110-V"]
[27,"130000-V","SALA ADMINISTRATIVA","132000-V","UNIDAD DE DESARROLLO Y ANÁLISIS ESTADÍSTICO","132100-V","DIVISIÓN ESTADÍSTICA","132120-V"]
[28,null,null,"132000-V","UNIDAD DE DESARROLLO Y ANÁLISIS ESTADÍSTICO","132200-V","DIVISIÓN DE ORGANIZACIÓN Y MÉTODOS","132210-V"]
[29,null,null,"132000-V","UNIDAD DE DESARROLLO Y ANÁLISIS ESTADÍSTICO","132200-V","DIVISIÓN DE ORGANIZACIÓN Y MÉTODOS","132220-V"]
[30,"130000-V","SALA ADMINISTRATIVA","133000-V","UNIDAD DE ADMINISTRACIÓN DE LA CARRERA JUDICIAL",{"$nulls":4},"01","ACCIONES CONSTITUCIONALES","01.02","Acciones de Tutela","Acuerdo No. 74 de 1996 “Por el cual se da cumplimiento al artículo 199 inciso primero de la Ley 270 de 1996”, Consejo Superior de la Judicatura Sala Administrativa, artículo 7 1996."]
[31,"130000-V","SALA ADMINISTRATIVA","133000-V","UNIDAD DE ADMINISTRACIÓN DE LA CARRERA JUDICIAL",{"$nulls":4},"02","ACTAS","02.04","Actas de Comité de Carrera Judicial","Acuerdo No. 74 de 1996 “Por el cual se da cumplimiento al artículo 199 inciso primero de la Ley 270 de 1996”, Consejo Superior de la Judicatura Sala Administrativa, artículo 7 1996."]
[32,"130000-V","SALA ADMINISTRATIVA","133000-V","UNIDAD DE ADMINISTRACIÓN DE LA CARRERA JUDICIAL",{"$nulls":4},"13","CONCEPTOS","13.01","Conceptos Jurídicos","Acuerdo No. 74 de 1996 “Por el cual se da cumplimiento al artículo 199 inciso primero de la Ley 270 de 1996”, Consejo Superior de la Judicatura Sala Administrativa, artículo 7 1996."]
[33,"130000-V","SALA ADMINISTRATIVA","134000-V","CENTRO DE DOCUMENTACIÓN SOCIO JURÍDICA",{"$nulls":4},"01","ACCIONES CONSTITUCIONALES","01.02","Acciones de Tutela","Acuerdo No. 74 de 1996 “Por el cual se da cumplimiento al artículo 199 inciso primero de la Ley 270 de 1996”, Consejo Superior de la Judicatura Sala Administrativa, artículo 7 1996."]
[34,"130000-V","SALA ADMINISTRATIVA","134000-V","CENTRO DE DOCUMENTACIÓN SOCIO JURÍDICA",{"$nulls":4},"03","ACTOS ADMINISTRATIVOS","03.02","Resoluciones","Acuerdo No. 74 de 1996 “Por el cual se da cumplimiento al artículo 199 inciso primero de la Ley 270 de 1996”, Consejo Superior de la Judicatura Sala Administrativa, artículo 7 1996."]
[35,"130000-V","SALA ADMINISTRATIVA","134000-V","CENTRO DE DOCUMENTACIÓN SOCIO JURÍDICA",{"$nulls":4},12,"COMUNICACIONES OFICIALES ",null,null,"Acuerdo No. 74 de 1996 “Por el cual se da cumplimiento al artículo 199 inciso primero de la Ley 270 de 1996”, Consejo Superior de la Judicatura Sala Administrativa, artículo 7 1996."]
[36,"130000-V","SALA ADMINISTRATIVA","134000-V","CENTRO DE DOCUMENTACIÓN SOCIO JURÍDICA",{"$nulls":4},"13","CONCEPTOS","13.01","Conceptos Jurídicos","Acuerdo No. 74 de 1996 “Por el cual se da cumplimiento al artículo 199 inciso primero de la Ley 270 de 1996”, Consejo Superior de la Judicatura Sala Administrativa, artículo 7 1996."]
[37,"130000-V","SALA ADMINISTRATIVA","134000-V","CENTRO DE DOCUMENTACIÓN SOCIO JURÍDICA","134100-V","OFICINA DE ATENCIÓN AL USUARIO",null,null,"24","INFORMES","24.04","Informes de gestión","Acuerdo No. 74 de 1996 “Por el cual se da cumplimiento al artículo 199 inciso primero de la Ley 270 de 1996”, Consejo Superior de la Judicatura Sala Administrativa, artículo 7 1996."]
[38,"130000-V","SALA ADMINISTRATIVA","134000-V","CENTRO DE DOCUMENTACIÓN SOCIO JURÍDICA","134200-V","DIVISIÓN DE GESTIÓN E INFORMACIÓN"]
[39,"130000-V","SALA ADMINISTRATIVA","134000-V","CENTRO DE DOCUMENTACIÓN SOCIO JURÍDICA","134300-V","DIVISIÓN DE PUBLICACIONES Y DIVULGACIÓN",null,null,"24","INFORMES","24.04","Informes de gestión","Acuerdo No. 74 de 1996 “Por el cual se da cumplimiento al artículo 199 inciso primero de la Ley 270 de 1996”, Consejo Superior de la Judicatura Sala Administrativa, artículo 7 1996."]
[40,"130000-V","SALA ADMINISTRATIVA","134000-V","CENTRO DE DOCUMENTACIÓN SOCIO JURÍDICA","134300-V","DIVISIÓN DE PUBLICACIONES Y DIVULGACIÓN",null,null,"41","PUBLICACIONES INSTITUCIONALES",null,null,"Acuerdo No. 74 de 1996 “Por el cual se da cumplimiento al artículo 199 inciso primero de la Ley 270 de 1996”, Consejo Superior de la Judicatura Sala Administrativa, artículo 7 1996."]
[41,"130000-V","SALA ADMINISTRATIVA","134000-V","CENTRO DE DOCUMENTACIÓN SOCIO JURÍDICA","134400-V","BIBLIOTECA ENRIQUE LOW MURTRA"]
[42,"130000-V","SALA ADMINISTRATIVA","134000-V","CENTRO DE DOCUMENTACIÓN SOCIO JURÍDICA","134500-V","SECCIÓN DE ARCHIVO JUSTICIA REGIONAL"]
[43,"130000-V","SALA ADMINISTRATIVA","135000-V","UNIDAD DE RECURSOS FISICOS E INMUEBLES",{"$nulls":4},"26","INVENTARIOS","26.03","Inventarios Generales","Acuerdo No. 74 de 1996 “Por el cual se da cumplimiento al artículo 199 inciso primero de la Ley 270 de 1996”, Consejo Superior de la Judicatura Sala Administrativa, artículo 7 1996."]
[44,"130000-V","SALA ADMINISTRATIVA","135000-V","UNIDAD DE RECURSOS FISICOS E INMUEBLES",{"$nulls":4},"37","PROCESOS","37.01","Procesos de reclamación de siniestros","Acuerdo No. 74 de 1996 “Por el cual se da cumplimiento al artículo 199 inciso primero de la Ley 270 de 1996”, Consejo Superior de la Judicatura Sala Administrativa, artículo 7 1996."]
[45,"130000-V","SALA ADMINISTRATIVA","136000-V","DIRECCIÓN NACIONAL DE REGISTRO NACIONAL DE ABOGADOS"]
[46,"130000-V","SALA ADMINISTRATIVA","137000-V","UNIDAD DE AUDITORIA",{"$nulls":4},"10","CIRCULARES",null,null,"Acuerdo No. 74 de 1996 “Por el cual se da cumplimiento al artículo 199 inciso primero de la Ley 270 de 1996”, Consejo Superior de la Judicatura Sala Administrativa, artículo 7 1996."]
[47,"130000-V","SALA ADMINISTRATIVA","137000-V","UNIDAD DE AUDITORIA",{"$nulls":4},"24","INFORMES","24.01","Informes a Entes de Control","Acuerdo No. 74 de 1996 “Por el cual se da cumplimiento al artículo 199 inciso primero de la Ley 270 de 1996”, Consejo Superior de la Judicatura Sala Administrativa, artículo 7 1996."]
[48,"130000-V","SALA ADMINISTRATIVA","137000-V","UNIDAD DE AUDITORIA",{"$nulls":4},"24","INFORMES","24.04","Informes de Gestión","Acuerdo No. 74 de 1996 “Por el cual se da cumplimiento al artículo 199 inciso primero de la Ley 270 de 1996”, Consejo Superior de la Judicatura Sala Administrativa, artículo 7 1996."]
[49,"130000-V","SALA ADMINISTRATIVA","137000-V","UNIDAD DE AUDITORIA",{"$nulls":4},"36","PLANES","36.03","Planes de Auditoría","Acuerdo No. 74 de 1996 “Por el cual se da cumplimiento al artículo 199 inciso primero de la Ley 270 de 1996”, Consejo Superior de la Judicatura Sala Administrativa, artículo 7 1996."]
[50,"130000-V","SALA ADMINISTRATIVA","138000-V","UNIDAD DE ASESORIA JURÍDICA",{"$nulls":4},"01","ACCIONES CONSTITUCIONALES","01.02","Acciones de Tutela","Acuerdo No. 74 de 1996 “Por el cual se da cumplimiento al artículo 199 inciso primero de la Ley 270 de 1996”, Consejo Superior de la Judicatura Sala Administrativa, artículo 7 1996."]
[51,"130000-V","SALA ADMINISTRATIVA","138000-V","UNIDAD DE ASESORIA JURÍDICA",{"$nulls":4},"13","CONCEPTOS","13.01","Conceptos Jurídicos","Acuerdo No. 74 de 1996 “Por el cual se da cumplimiento al artículo 199 inciso primero de la Ley 270 de 1996”, Consejo Superior de la Judicatura Sala Administrativa, artículo 7 1996."]
[52,"130000-V","SALA ADMINISTRATIVA","139000-V","UNIDAD DE ASESORIA PARA LA SEGURIDAD",{"$nulls":4},"01","ACCIONES CONSTITUCIONALES","01.02","Acciones de Tutela","Acuerdo No. 74 de 1996 “Por el cual se da cumplimiento al artículo 199 inciso primero de la Ley 270 de 1996”, Consejo Superior de la Judicatura Sala Administrativa, artículo 7 1996."]
[53,"130000-V","SALA ADMINISTRATIVA","139000-V","UNIDAD DE ASESORIA PARA LA SEGURIDAD",{"$nulls":4},12,"COMUNICACIONES OFICIALES ",null,null,"Acuerdo No. 74 de 1996 “Por el cual se da cumplimiento al artículo 199 inciso primero de la Ley 270 de 1996”, Consejo Superior de la Judicatura Sala Administrativa, artículo 7 1996."]
[54,"130000-V","SALA ADMINISTRATIVA","139000-V","UNIDAD DE ASESORIA PARA LA SEGURIDAD",{"$nulls":4},"18","DERECHOS DE PETICIÓN",null,null,"Acuerdo No. 74 de 1996 “Por el cual se da cumplimiento al artículo 199 inciso primero de la Ley 270 de 1996”, Consejo Superior de la Judicatura Sala Administrativa, artículo 7 1996."]
[55,"130000-V","SALA ADMINISTRATIVA","139000-V","UNIDAD DE ASESORIA PARA LA SEGURIDAD",{"$nulls":4},"24","INFORMES","24.04","Informes de Gestión","Acuerdo No. 74 de 1996 “Por el cual se da cumplimiento al artículo 199 inciso primero de la Ley 270 de 1996”, Consejo Superior de la Judicatura Sala Administrativa, artículo 7 1996."]
[56,"130000-V","SALA ADMINISTRATIVA","139000-V","UNIDAD DE ASESORIA PARA LA SEGURIDAD","139100-V","GRUPO DE MANTENIMIENTO"]
[57,"130000-V","SALA ADMINISTRATIVA","139000-V","UNIDAD DE ASESORIA PARA LA SEGURIDAD","139200-V","GRUPO DE COORDINACIÓN ADMINISTRATIVA"]
[58,"130000-V","SALA ADMINISTRATIVA","1310000-V","OFICINA DE COORDINACIÓN DE ASUNTOS INTERNACIONALES Y ASESORIA JURÍDICA"]
[59,"130000-V","SALA ADMINISTRATIVA","1311100-V","ESCUELA JUDICIAL RODRIGO LARA BONILLA",{"$nulls":4},"01","ACCIONES CONSTITUCIONALES","01.02","Acciones de Tutela","Acuerdo No. 74 de 1996 “Por el cual se da cumplimiento al artículo 199 inciso primero de la Ley 270 de 1996”, Consejo Superior de la Judicatura Sala Administrativa, artículo 7 1996."]
[60,"130000-V","SALA ADMINISTRATIVA","1311100-V","ESCUELA JUDICIAL RODRIGO LARA BONILLA",{"$nulls":4},"24","INFORMES","24.04","Informes de Gestión","Acuerdo No. 74 de 1996 “Por el cual se da cumplimiento al artículo 199 inciso primero de la Ley 270 de 1996”, Consejo Superior de la Judicatura Sala Administrativa, artículo 7 1996."]
[61,"130000-V","SALA ADMINISTRATIVA","1311100-V","ESCUELA JUDICIAL RODRIGO LARA BONILLA",{"$nulls":4},"36","PLANES","36.01","Plan Anual de Formación y Capacitación ","Acuerdo No. 74 de 1996 “Por el cual se da cumplimiento al artículo 199 inciso primero de la Ley 270 de 1996”, Consejo Superior de la Judicatura Sala Administrativa, artículo 7 1996."]
[62,"130000-V","SALA ADMINISTRATIVA","1311100-V","ESCUELA JUDICIAL RODRIGO LARA BONILLA","1311010-V","DIVISIÓN ACADÉMICA",null,null,"02","ACTAS","02.02","Actas De Comité Académico","Acuerdo No. 74 de 1996 “Por el cual se da cumplimiento al artículo 199 inciso primero de la Ley 270 de 1996”, Consejo Superior de la Judicatura Sala Administrativa, artículo 7 1996."]
[63,"130000-V","SALA ADMINISTRATIVA","1311100-V","ESCUELA JUDICIAL RODRIGO LARA BONILLA","1311010-V","DIVISIÓN ACADÉMICA",null,null,"08","CERTIFICACIONES","08.01","Certificaciones Académicas","Acuerdo No. 74 de 1996 “Por el cual se da cumplimiento al artículo 199 inciso primero de la Ley 270 de 1996”, Consejo Superior de la Judicatura Sala Administrativa, artículo 7 1996."]
[64,"130000-V","SALA ADMINISTRATIVA","1311100-V","ESCUELA JUDICIAL RODRIGO LARA BONILLA","1311010-V","DIVISIÓN ACADÉMICA",null,null,12,"COMUNICACIONES OFICIALES ",null,null,"Acuerdo No. 74 de 1996 “Por el cual se da cumplimiento al artículo 199 inciso primero de la Ley 270 de 1996”, Consejo Superior de la Judicatura Sala Administrativa, artículo 7 1996."]
[65,"130000-V","SALA ADMINISTRATIVA","1311100-V","ESCUELA JUDICIAL RODRIGO LARA BONILLA","1311010-V","DIVISIÓN ACADÉMICA",null,null,"24","INFORMES","24.01","Informes a Entes de Control","Acuerdo No. 74 de 1996 “Por el cual se da cumplimiento al artículo 199 inciso primero de la Ley 270 de 1996”, Consejo Superior de la Judicatura Sala Administrativa, artículo 7 1996."]
[66,"130000-V","SALA ADMINISTRATIVA","1311100-V","ESCUELA JUDICIAL RODRIGO LARA BONILLA","1311010-V","DIVISIÓN ACADÉMICA",null,null,"24","INFORMES","24.04","Informes de Gestión","Acuerdo No. 74 de 1996 “Por el cual se da cumplimiento al artículo 199 inciso primero de la Ley 270 de 1996”, Consejo Superior de la Judicatura Sala Administrativa, artículo 7 1996."]
[67,"130000-V","SALA ADMINISTRATIVA","1311100-V","ESCUELA JUDICIAL RODRIGO LARA BONILLA","1311010-V","DIVISIÓN ACADÉMICA",null,null,"31","MEMORIAS DE EVENTOS ACADÉMICOS",null,null,"Acuerdo No. 74 de 1996 “Por el cual se da cumplimiento al artículo 199 inciso primero de la Ley 270 de 1996”, Consejo Superior de la Judicatura Sala Administrativa, artículo 7 1996."]
[68,"130000-V","SALA ADMINISTRATIVA","1311100-V","ESCUELA JUDICIAL RODRIGO LARA BONILLA","1311010-V","DIVISIÓN ACADÉMICA",null,null,"38","PROGRAMAS  ","38.01","Programas de Formación y Capacitación","Acuerdo No. 74 de 1996 “Por el cual se da cumplimiento al artículo 199 inciso primero de la Ley 270 de 1996”, Consejo Superior de la Judicatura Sala Administrativa, artículo 7 1996."]
[69,"140000-V","SALA JURISDICCIONAL DISCIPLINARIA","141000-V","PRESIDENCIA DE LA SALA JURISDICCIONAL",{"$nulls":4},1,"ACCIONES CONSTITUCIONALES ","01.01","Acciones de Habeas Corpus ","Acuerdo No. 74 de 1996 “Por el cual se da cumplimiento al artículo 199 inciso primero de la Ley 270 de 1996”, Consejo Superior de la Judicatura Sala Administrativa, artículo 7 1996."]
[70,"140000-V","SALA JURISDICCIONAL DISCIPLINARIA","141000-V","PRESIDENCIA DE LA SALA JURISDICCIONAL",{"$nulls":4},"01","ACCIONES CONSTITUCIONALES","01.02","Acciones de Tutela","Acuerdo No. 74 de 1996 “Por el cual se da cumplimiento al artículo 199 inciso primero de la Ley 270 de 1996”, Consejo Superior de la Judicatura Sala Administrativa, artículo 7 1996."]
[71,"140000-V","SALA JURISDICCIONAL DISCIPLINARIA","141000-V","PRESIDENCIA DE LA SALA JURISDICCIONAL",{"$nulls":4},"02","ACTAS","02.12","Actas de Sala Jurisdiccional Disciplinaria","Acuerdo No. 74 de 1996 “Por el cual se da cumplimiento al artículo 199 inciso primero de la Ley 270 de 1996”, Consejo Superior de la Judicatura Sala Administrativa, artículo 7 1996."]
[72,"140000-V","SALA JURISDICCIONAL DISCIPLINARIA","141000-V","PRESIDENCIA DE LA SALA JURISDICCIONAL",{"$nulls":4},"08","CERTIFICACIONES","08.02","Certificaciones de Antecedentes Disciplinarios","Acuerdo No. 74 de 1996 “Por el cual se da cumplimiento al artículo 199 inciso primero de la Ley 270 de 1996”, Consejo Superior de la Judicatura Sala Administrativa, artículo 7 1996."]
[73,"140000-V","SALA JURISDICCIONAL DISCIPLINARIA","141000-V","PRESIDENCIA DE LA SALA JURISDICCIONAL",{"$nulls":4},"23","HISTORIAS LABORALES",null,null,"Acuerdo No. 74 de 1996 “Por el cual se da cumplimiento al artículo 199 inciso primero de la Ley 270 de 1996”, Consejo Superior de la Judicatura Sala Administrativa, artículo 7 1996."]
[74,"140000-V","SALA JURISDICCIONAL DISCIPLINARIA","141000-V","PRESIDENCIA DE LA SALA JURISDICCIONAL","141100-V","DESPACHO DEL PRESIDENTE"]
[75,"140000-V","SALA JURISDICCIONAL DISCIPLINARIA","141000-V","PRESIDENCIA DE LA SALA JURISDICCIONAL","141200-V","UNIDAD DE INSTRUCCIÓN"]
[76,"140000-V","SALA JURISDICCIONAL DISCIPLINARIA","142000-V","SECRETARÍA JUDICIAL",{"$nulls":4},"37","PROCESOS","37.02","Procesos Disciplinarios","Acuerdo No. 74 de 1996 “Por el cual se da cumplimiento al artículo 199 inciso primero de la Ley 270 de 1996”, Consejo Superior de la Judicatura Sala Administrativa, artículo 7 1996."]
[77,"140000-V","SALA JURISDICCIONAL DISCIPLINARIA","142000-V","SECRETARÍA JUDICIAL",{"$nulls":4},"39","PROTOCOLOS",null,null,"Acuerdo No. 74 de 1996 “Por el cual se da cumplimiento al artículo 199 inciso primero de la Ley 270 de 1996”, Consejo Superior de la Judicatura Sala Administrativa, artículo 7 1996."]
[78,"140000-V","SALA JURISDICCIONAL DISCIPLINARIA","142000-V","SECRETARÍA JUDICIAL",{"$nulls":4},"40","PROVIDENCIAS",null,null,"Acuerdo No. 74 de 1996 “Por el cual se da cumplimiento al artículo 199 inciso primero de la Ley 270 de 1996”, Consejo Superior de la Judicatura Sala Administrativa, artículo 7 1996."]
[79,"140000-V","SALA JURISDICCIONAL DISCIPLINARIA","143000-V","RELATORÍA"]
[80,"140000-V","SALA JURISDICCIONAL DISCIPLINARIA","144000-V","DESPACHO DE LOS MAGISTRADOS"]
[81,"160000-V","CONSEJO SECCIONAL DE LA JUDICATURA","161000-V","SALA ADMINISTRATIVA",{"$nulls":4},"01","ACCIONES CONSTITUCIONALES","01.02","Acciones de Tutela","Acuerdo No. 74 de 1996 “Por el cual se da cumplimiento al artículo 199 inciso primero de la Ley 270 de 1996”, Consejo Superior de la Judicatura Sala Administrativa, artículo 7 1996."]
[82,"160000-V","CONSEJO SECCIONAL DE LA JUDICATURA","161000-V","SALA ADMINISTRATIVA",{"$nulls":4},"02","ACTAS","02.12","Actas de Sala Jurisdiccional Disciplinaria","Acuerdo No. 74 de 1996 “Por el cual se da cumplimiento al artículo 199 inciso primero de la Ley 270 de 1996”, Consejo Superior de la Judicatura Sala Administrativa, artículo 7 1996."]
[83,"160000-V","CONSEJO SECCIONAL DE LA JUDICATURA","162000-V","SALA JURISDICCIONAL DISCIPLINARIA",{"$nulls":4},"37","PROCESOS","37.2","Procesos Disciplinarios","Acuerdo No. 74 de 1996 “Por el cual se da cumplimiento al artículo 199 inciso primero de la Ley 270 de 1996”, Consejo Superior de la Judicatura Sala Administrativa, artículo 7 1996."]
[84,"170000-V","DIRECCIÓN EJECUTIVA DE ADMINISTRACIÓN JUDICIAL",{"$nulls":6},"03","ACTOS ADMINISTRATIVOS","03.01","Acuerdos","Acuerdo No. 74 de 1996 “Por el cual se da cumplimiento al artículo 199 inciso primero de la Ley 270 de 1996”, Consejo Superior de la Judicatura Sala Administrativa, artículo 7 1996."]
[85,"170000-V","DIRECCIÓN EJECUTIVA DE ADMINISTRACIÓN JUDICIAL",{"$nulls":6},"03","ACTOS ADMINISTRATIVOS","03.02","Resoluciones","Acuerdo No. 74 de 1996 “Por el cual se da cumplimiento al artículo 199 inciso primero de la Ley 270 de 1996”, Consejo Superior de la Judicatura Sala Administrativa, artículo 7 1996."]
[86,"170000-V","DIRECCIÓN EJECUTIVA DE ADMINISTRACIÓN JUDICIAL",{"$nulls":6},"10","CIRCULARES",null,null,"Acuerdo No. 74 de 1996 “Por el cual se da cumplimiento al artículo 199 inciso primero de la Ley 270 de 1996”, Consejo Superior de la Judicatura Sala Administrativa, artículo 7 1996."]
[87,"170000-V","DIRECCIÓN EJECUTIVA DE ADMINISTRACIÓN JUDICIAL",{"$nulls":6},12,"COMUNICACIONES OFICIALES ",null,null,"Acuerdo No. 74 de 1996 “Por el cual se da cumplimiento al artículo 199 inciso primero de la Ley 270 de 1996”, Consejo Superior de la Judicatura Sala Administrativa, artículo 7 1996."]
[88,"170000-V","DIRECCIÓN EJECUTIVA DE ADMINISTRACIÓN JUDICIAL",{"$nulls":6},"24","INFORMES","24.01","Informes a Entes de Control","Acuerdo No. 74 de 1996 “Por el cual se da cumplimiento al artículo 199 inciso primero de la Ley 270 de 1996”, Consejo Superior de la Judicatura Sala Administrativa, artículo 7 1996."]
[89,"170000-V","DIRECCIÓN EJECUTIVA DE ADMINISTRACIÓN JUDICIAL",{"$nulls":6},"24","INFORMES","24.04","Informes de gestión","Acuerdo No. 74 de 1996 “Por el cual se da cumplimiento al artículo 199 inciso primero de la Ley 270 de 1996”, Consejo Superior de la Judicatura Sala Administrativa, artículo 7 1996."]
[90,"170000-V","DIRECCIÓN EJECUTIVA DE ADMINISTRACIÓN JUDICIAL","170001-V","Oficina de Quejas y Reclamos"]
[91,"170000-V","DIRECCIÓN EJECUTIVA DE ADMINISTRACIÓN JUDICIAL","170002-V","Ofina de Coordinación de las Direcciones Seccionales"]
[92,"170000-V","DIRECCIÓN EJECUTIVA DE ADMINISTRACIÓN JUDICIAL","171000-V","Unidad de Planeación",{"$nulls":4},12,"COMUNICACIONES OFICIALES ",null,null,"Acuerdo No. 74 de 1996 “Por el cual se da cumplimiento al artículo 199 inciso primero de la Ley 270 de 1996”, Consejo Superior de la Judicatura Sala Administrativa, artículo 7 1996."]
[93,"170000-V","DIRECCIÓN EJECUTIVA DE ADMINISTRACIÓN JUDICIAL","171000-V","Unidad de Planeación","171100-V","División de Programación",null,null,"04","ANTEPROYECTO DE PRESUPUESTO",null,null,"Acuerdo No. 74 de 1996 “Por el cual se da cumplimiento al artículo 199 inciso primero de la Ley 270 de 1996”, Consejo Superior de la Judicatura Sala Administrativa, artículo 7 1996."]
[94,"170000-V","DIRECCIÓN EJECUTIVA DE ADMINISTRACIÓN JUDICIAL","171000-V","Unidad de Planeación","171200-V","División de Estudios y Evaluaciones"]
[95,"170000-V","DIRECCIÓN EJECUTIVA DE ADMINISTRACIÓN JUDICIAL","172000-V","Unidad de Recursos Humanos ",{"$nulls":4},"24","INFORMES","21.04","Informes de gestión","Acuerdo No. 74 de 1996 “Por el cual se da cumplimiento al artículo 199 inciso primero de la Ley 270 de 1996”, Consejo Superior de la Judicatura Sala Administrativa, artículo 7 1996."]
[96,"170000-V","DIRECCIÓN EJECUTIVA DE ADMINISTRACIÓN JUDICIAL","172000-V","Unidad de Recursos Humanos ","172100-V","División de Asuntos Laborales",null,null,"02","ACTAS","02.10","Actas de Posesión","Acuerdo No. 74 de 1996 “Por el cual se da cumplimiento al artículo 199 inciso primero de la Ley 270 de 1996”, Consejo Superior de la Judicatura Sala Administrativa, artículo 7 1996."]
[97,"170000-V","DIRECCIÓN EJECUTIVA DE ADMINISTRACIÓN JUDICIAL","172000-V","Unidad de Recursos Humanos ","172100-V","División de Asuntos Laborales",null,null,"07","BONOS PENSIONALES",null,null,"Acuerdo No. 74 de 1996 “Por el cual se da cumplimiento al artículo 199 inciso primero de la Ley 270 de 1996”, Consejo Superior de la Judicatura Sala Administrativa, artículo 7 1996."]
[98,"170000-V","DIRECCIÓN EJECUTIVA DE ADMINISTRACIÓN JUDICIAL","172000-V","Unidad de Recursos Humanos ","172100-V","División de Asuntos Laborales",null,null,"08","CERTIFICACIONES","08.04","Certificaciones Laborales","Acuerdo No. 74 de 1996 “Por el cual se da cumplimiento al artículo 199 inciso primero de la Ley 270 de 1996”, Consejo Superior de la Judicatura Sala Administrativa, artículo 7 1996."]
[99,"170000-V","DIRECCIÓN EJECUTIVA DE ADMINISTRACIÓN JUDICIAL","172000-V","Unidad de Recursos Humanos ","172100-V","División de Asuntos Laborales",null,null,12,"COMUNICACIONES OFICIALES ",null,null,"Acuerdo No. 74 de 1996 “Por el cual se da cumplimiento al artículo 199 inciso primero de la Ley 270 de 1996”, Consejo Superior de la Judicatura Sala Administrativa, artículo 7 1996."]
[100,"170000-V","DIRECCIÓN EJECUTIVA DE ADMINISTRACIÓN JUDICIAL","172000-V","Unidad de Recursos Humanos ","172100-V","División de Asuntos Laborales",null,null,"24","INFORMES","24.04","Informes de gestión","Acuerdo No. 74 de 1996 “Por el cual se da cumplimiento al artículo 199 inciso primero de la Ley 270 de 1996”, Consejo Superior de la Judicatura Sala Administrativa, artículo 7 1996."]
[101,"170000-V","DIRECCIÓN EJECUTIVA DE ADMINISTRACIÓN JUDICIAL","172000-V","Unidad de Recursos Humanos ","172100-V","División de Asuntos Laborales","172110-V","Sección de Prestaciones Sociales"]
[102,"170000-V","DIRECCIÓN EJECUTIVA DE ADMINISTRACIÓN JUDICIAL","172000-V","Unidad de Recursos Humanos ","172100-V","División de Asuntos Laborales","172120-V","Grupo de Hojas de Vida y Registro",12,"COMUNICACIONES OFICIALES ",null,null,"Acuerdo No. 74 de 1996 “Por el cual se da cumplimiento al artículo 199 inciso primero de la Ley 270 de 1996”, Consejo Superior de la Judicatura Sala Administrativa, artículo 7 1996."]
[103,"170000-V","DIRECCIÓN EJECUTIVA DE ADMINISTRACIÓN JUDICIAL","172000-V","Unidad de Recursos Humanos ","172100-V","División de Asuntos Laborales","172120-V","Grupo de Hojas de Vida y Registro","23","HISTORIAS LABORALES",null,null,"Acuerdo No. 74 de 1996 “Por el cual se da cumplimiento al artículo 199 inciso primero de la Ley 270 de 1996”, Consejo Superior de la Judicatura Sala Administrativa, artículo 7 1996."]
[104,"170000-V","DIRECCIÓN EJECUTIVA DE ADMINISTRACIÓN JUDICIAL","172000-V","Unidad de Recursos Humanos ","172100-V","División de Asuntos Laborales","172130-V","Grupo de Nóminas","32","NÓMINAS",null,null,"Acuerdo No. 74 de 1996 “Por el cual se da cumplimiento al artículo 199 inciso primero de la Ley 270 de 1996”, Consejo Superior de la Judicatura Sala Administrativa, artículo 7 1996."]
[105,"170000-V","DIRECCIÓN EJECUTIVA DE ADMINISTRACIÓN JUDICIAL","172000-V","Unidad de Recursos Humanos ","172200-V","División de Bienestar Social y Seguridad Social",null,null,"02","ACTAS","02.06","Actas de Comité de Convivencia Laboral","Acuerdo No. 74 de 1996 “Por el cual se da cumplimiento al artículo 199 inciso primero de la Ley 270 de 1996”, Consejo Superior de la Judicatura Sala Administrativa, artículo 7 1996."]
[106,"170000-V","DIRECCIÓN EJECUTIVA DE ADMINISTRACIÓN JUDICIAL","172000-V","Unidad de Recursos Humanos ","172200-V","División de Bienestar Social y Seguridad Social",null,null,"02","ACTAS","02.07","Actas de Comité Paritario de Seguridad y Salud en el Trabajo","Acuerdo No. 74 de 1996 “Por el cual se da cumplimiento al artículo 199 inciso primero de la Ley 270 de 1996”, Consejo Superior de la Judicatura Sala Administrativa, artículo 7 1996."]
[107,"170000-V","DIRECCIÓN EJECUTIVA DE ADMINISTRACIÓN JUDICIAL","172000-V","Unidad de Recursos Humanos ","172200-V","División de Bienestar Social y Seguridad Social",null,null,12,"COMUNICACIONES OFICIALES ",null,null,"Acuerdo No. 74 de 1996 “Por el cual se da cumplimiento al artículo 199 inciso primero de la Ley 270 de 1996”, Consejo Superior de la Judicatura Sala Administrativa, artículo 7 1996."]
[108,"170000-V","DIRECCIÓN EJECUTIVA DE ADMINISTRACIÓN JUDICIAL","172000-V","Unidad de Recursos Humanos ","172200-V","División de Bienestar Social y Seguridad Social",null,null,"18","DERECHOS DE PETICIÓN",null,null,"Acuerdo No. 74 de 1996 “Por el cual se da cumplimiento al artículo 199 inciso primero de la Ley 270 de 1996”, Consejo Superior de la Judicatura Sala Administrativa, artículo 7 1996."]
[109,"170000-V","DIRECCIÓN EJECUTIVA DE ADMINISTRACIÓN JUDICIAL","172000-V","Unidad de Recursos Humanos ","172200-V","División de Bienestar Social y Seguridad Social",null,null,"24","INFORMES","24.04","Informes de gestión","Acuerdo No. 74 de 1996 “Por el cual se da cumplimiento al artículo 199 inciso primero de la Ley 270 de 1996”, Consejo Superior de la Judicatura Sala Administrativa, artículo 7 1996."]
[110,"170000-V","DIRECCIÓN EJECUTIVA DE ADMINISTRACIÓN JUDICIAL","172000-V","Unidad de Recursos Humanos ","172200-V","División de Bienestar Social y Seguridad Social",null,null,"24","INFORMES","24.03","Informes de Enfermedad Laboral","Acuerdo No. 74 de 1996 “Por el cual se da cumplimiento al artículo 199 inciso primero de la Ley 270 de 1996”, Consejo Superior de la Judicatura Sala Administrativa, artículo 7 1996."]
[111,"170000-V","DIRECCIÓN EJECUTIVA DE ADMINISTRACIÓN JUDICIAL","172000-V","Unidad de Recursos Humanos ","172200-V","División de Bienestar Social y Seguridad Social",null,null,"36","PLANES","36.04","Planes de Bienestar ","Acuerdo No. 74 de 1996 “Por el cual se da cumplimiento al artículo 199 inciso primero de la Ley 270 de 1996”, Consejo Superior de la Judicatura Sala Administrativa, artículo 7 1996."]
[112,"170000-V","DIRECCIÓN EJECUTIVA DE ADMINISTRACIÓN JUDICIAL","172000-V","Unidad de Recursos Humanos ","172200-V","División de Bienestar Social y Seguridad Social",null,null,"36","PLANES","36.07","Planes de Emergencias","Acuerdo No. 74 de 1996 “Por el cual se da cumplimiento al artículo 199 inciso primero de la Ley 270 de 1996”, Consejo Superior de la Judicatura Sala Administrativa, artículo 7 1996."]
[113,"170000-V","DIRECCIÓN EJECUTIVA DE ADMINISTRACIÓN JUDICIAL","172000-V","Unidad de Recursos Humanos ","172200-V","División de Bienestar Social y Seguridad Social",null,null,"36","PLANES","36.09","Planes Institucionales de Capacitación","Acuerdo No. 74 de 1996 “Por el cual se da cumplimiento al artículo 199 inciso primero de la Ley 270 de 1996”, Consejo Superior de la Judicatura Sala Administrativa, artículo 7 1996."]
[114,"170000-V","DIRECCIÓN EJECUTIVA DE ADMINISTRACIÓN JUDICIAL","173000-V","Unidad Presupuesto",{"$nulls":4},"08","CERTIFICACIONES","08.03","Certificaciones De Ingresos Y Retenciones","Acuerdo No. 74 de 1996 “Por el cual se da cumplimiento al artículo 199 inciso primero de la Ley 270 de 1996”, Consejo Superior de la Judicatura Sala Administrativa, artículo 7 1996."]
[115,"170000-V","DIRECCIÓN EJECUTIVA DE ADMINISTRACIÓN JUDICIAL","173000-V","Unidad Presupuesto",{"$nulls":4},12,"COMUNICACIONES OFICIALES ",null,null,"Acuerdo No. 74 de 1996 “Por el cual se da cumplimiento al artículo 199 inciso primero de la Ley 270 de 1996”, Consejo Superior de la Judicatura Sala Administrativa, artículo 7 1996."]
[116,"170000-V","DIRECCIÓN EJECUTIVA DE ADMINISTRACIÓN JUDICIAL","173000-V","Unidad Presupuesto",{"$nulls":4},"24","INFORMES","24.01","Informes a Entes de Control","Acuerdo No. 74 de 1996 “Por el cual se da cumplimiento al artículo 199 inciso primero de la Ley 270 de 1996”, Consejo Superior de la Judicatura Sala Administrativa, artículo 7 1996."]
[117,"170000-V","DIRECCIÓN EJECUTIVA DE ADMINISTRACIÓN JUDICIAL","173000-V","Unidad Presupuesto",{"$nulls":4},"24","INFORMES","24.04","Informes de gestión","Acuerdo No. 74 de 1996 “Por el cual se da cumplimiento al artículo 199 inciso primero de la Ley 270 de 1996”, Consejo Superior de la Judicatura Sala Administrativa, artículo 7 1996."]
[118,"170000-V","DIRECCIÓN EJECUTIVA DE ADMINISTRACIÓN JUDICIAL","173000-V","Unidad Presupuesto","173100-V","División de Ejecución Presupuestal",null,null,"09","CERTIFICADOS PRESUPUESTALES",null,null,"Acuerdo No. 74 de 1996 “Por el cual se da cumplimiento al artículo 199 inciso primero de la Ley 270 de 1996”, Consejo Superior de la Judicatura Sala Administrativa, artículo 7 1996."]
[119,"170000-V","DIRECCIÓN EJECUTIVA DE ADMINISTRACIÓN JUDICIAL","173000-V","Unidad Presupuesto","173200-V","División de Tesorería",null,null,"14","CONCILIACIONES BANCARIAS ",null,null,"Acuerdo No. 74 de 1996 “Por el cual se da cumplimiento al artículo 199 inciso primero de la Ley 270 de 1996”, Consejo Superior de la Judicatura Sala Administrativa, artículo 7 1996."]
[120,"170000-V","DIRECCIÓN EJECUTIVA DE ADMINISTRACIÓN JUDICIAL","173000-V","Unidad Presupuesto","173200-V","División de Tesorería",null,null,"17","DECLARACIONES TRIBUTARIAS",null,null,"Acuerdo No. 74 de 1996 “Por el cual se da cumplimiento al artículo 199 inciso primero de la Ley 270 de 1996”, Consejo Superior de la Judicatura Sala Administrativa, artículo 7 1996."]
[121,"170000-V","DIRECCIÓN EJECUTIVA DE ADMINISTRACIÓN JUDICIAL","173000-V","Unidad Presupuesto","173200-V","División de Tesorería",null,null,"24","INFORMES","24.03","Informes de arancel judicial","Acuerdo No. 74 de 1996 “Por el cual se da cumplimiento al artículo 199 inciso primero de la Ley 270 de 1996”, Consejo Superior de la Judicatura Sala Administrativa, artículo 7 1996."]
[122,"170000-V","DIRECCIÓN EJECUTIVA DE ADMINISTRACIÓN JUDICIAL","173000-V","Unidad Presupuesto","173200-V","División de Tesorería",null,null,"34","ORDENES DE PAGO",null,null,"Acuerdo No. 74 de 1996 “Por el cual se da cumplimiento al artículo 199 inciso primero de la Ley 270 de 1996”, Consejo Superior de la Judicatura Sala Administrativa, artículo 7 1996."]
[123,"170000-V","DIRECCIÓN EJECUTIVA DE ADMINISTRACIÓN JUDICIAL","173000-V","Unidad Presupuesto","173300-V","División de Contabilidad",null,null,"05","BALANCES GENERALES",null,null,"Acuerdo No. 74 de 1996 “Por el cual se da cumplimiento al artículo 199 inciso primero de la Ley 270 de 1996”, Consejo Superior de la Judicatura Sala Administrativa, artículo 7 1996."]
[124,"170000-V","DIRECCIÓN EJECUTIVA DE ADMINISTRACIÓN JUDICIAL","173000-V","Unidad Presupuesto","173300-V","División de Contabilidad",null,null,"06","BOLETINES","06.01","Boletines Diarios de Tesorería","Acuerdo No. 74 de 1996 “Por el cual se da cumplimiento al artículo 199 inciso primero de la Ley 270 de 1996”, Consejo Superior de la Judicatura Sala Administrativa, artículo 7 1996."]
[125,"170000-V","DIRECCIÓN EJECUTIVA DE ADMINISTRACIÓN JUDICIAL","173000-V","Unidad Presupuesto","173300-V","División de Contabilidad",null,null,"08","CERTIFICACIONES","08.03","Certificaciones de Ingresos y Retenciones","Acuerdo No. 74 de 1996 “Por el cual se da cumplimiento al artículo 199 inciso primero de la Ley 270 de 1996”, Consejo Superior de la Judicatura Sala Administrativa, artículo 7 1996."]
[126,"170000-V","DIRECCIÓN EJECUTIVA DE ADMINISTRACIÓN JUDICIAL","173000-V","Unidad Presupuesto","173300-V","División de Contabilidad",null,null,"11","COMPROBANTES ","11.01","Comprobantes Contables","Acuerdo No. 74 de 1996 “Por el cual se da cumplimiento al artículo 199 inciso primero de la Ley 270 de 1996”, Consejo Superior de la Judicatura Sala Administrativa, artículo 7 1996."]
[127,"170000-V","DIRECCIÓN EJECUTIVA DE ADMINISTRACIÓN JUDICIAL","173000-V","Unidad Presupuesto","173300-V","División de Contabilidad",null,null,"17","DECLARACIONES TRIBUTARIAS",null,null,"Acuerdo No. 74 de 1996 “Por el cual se da cumplimiento al artículo 199 inciso primero de la Ley 270 de 1996”, Consejo Superior de la Judicatura Sala Administrativa, artículo 7 1996."]
[128,"170000-V","DIRECCIÓN EJECUTIVA DE ADMINISTRACIÓN JUDICIAL","173000-V","Unidad Presupuesto","173300-V","División de Contabilidad",null,null,"18","DERECHOS DE PETICIÓN",null,null,"Acuerdo No. 74 de 1996 “Por el cual se da cumplimiento al artículo 199 inciso primero de la Ley 270 de 1996”, Consejo Superior de la Judicatura Sala Administrativa, artículo 7 1996."]
[129,"170000-V","DIRECCIÓN EJECUTIVA DE ADMINISTRACIÓN JUDICIAL","173000-V","Unidad Presupuesto","173300-V","División de Contabilidad",null,null,"24","INFORMES","24.01","Informes a Entes de Control","Acuerdo No. 74 de 1996 “Por el cual se da cumplimiento al artículo 199 inciso primero de la Ley 270 de 1996”, Consejo Superior de la Judicatura Sala Administrativa, artículo 7 1996."]
[130,"170000-V","DIRECCIÓN EJECUTIVA DE ADMINISTRACIÓN JUDICIAL","173000-V","Unidad Presupuesto","173300-V","División de Contabilidad",null,null,"24","INFORMES","24.04","Informes de gestión","Acuerdo No. 74 de 1996 “Por el cual se da cumplimiento al artículo 199 inciso primero de la Ley 270 de 1996”, Consejo Superior de la Judicatura Sala Administrativa, artículo 7 1996."]
[131,"170000-V","DIRECCIÓN EJECUTIVA DE ADMINISTRACIÓN JUDICIAL","173000-V","Unidad Presupuesto","173300-V","División de Contabilidad",null,null,"27","LIBROS CONTABLES","27.01","Libros Contables  ","Acuerdo No. 74 de 1996 “Por el cual se da cumplimiento al artículo 199 inciso primero de la Ley 270 de 1996”, Consejo Superior de la Judicatura Sala Administrativa, artículo 7 1996."]
[132,"170000-V","DIRECCIÓN EJECUTIVA DE ADMINISTRACIÓN JUDICIAL","173000-V","Unidad Presupuesto","173400-V","División de Fondos Especiales y Cobro Coactivo",null,null,12,"COMUNICACIONES OFICIALES ",null,null,"Acuerdo No. 74 de 1996 “Por el cual se da cumplimiento al artículo 199 inciso primero de la Ley 270 de 1996”, Consejo Superior de la Judicatura Sala Administrativa, artículo 7 1996."]
[133,"170000-V","DIRECCIÓN EJECUTIVA DE ADMINISTRACIÓN JUDICIAL","173000-V","Unidad Presupuesto","173400-V","División de Fondos Especiales y Cobro Coactivo",null,null,"20","EXPEDIENTES DE PROCESOS DE COBRO COATIVO",null,null,"Acuerdo No. 74 de 1996 “Por el cual se da cumplimiento al artículo 199 inciso primero de la Ley 270 de 1996”, Consejo Superior de la Judicatura Sala Administrativa, artículo 7 1996."]
[134,"170000-V","DIRECCIÓN EJECUTIVA DE ADMINISTRACIÓN JUDICIAL","173000-V","Unidad Presupuesto","173400-V","División de Fondos Especiales y Cobro Coactivo",null,null,"24","INFORMES","24.04","Informes de gestión","Acuerdo No. 74 de 1996 “Por el cual se da cumplimiento al artículo 199 inciso primero de la Ley 270 de 1996”, Consejo Superior de la Judicatura Sala Administrativa, artículo 7 1996."]
[135,"170000-V","DIRECCIÓN EJECUTIVA DE ADMINISTRACIÓN JUDICIAL","174000-V","Unidad Informática",{"$nulls":4},12,"COMUNICACIONES OFICIALES ",null,null,"Acuerdo No. 74 de 1996 “Por el cual se da cumplimiento al artículo 199 inciso primero de la Ley 270 de 1996”, Consejo Superior de la Judicatura Sala Administrativa, artículo 7 1996."]
[136,"170000-V","DIRECCIÓN EJECUTIVA DE ADMINISTRACIÓN JUDICIAL","174000-V","Unidad Informática",{"$nulls":4},"18","DERECHOS DE PETICIÓN",null,null,"Acuerdo No. 74 de 1996 “Por el cual se da cumplimiento al artículo 199 inciso primero de la Ley 270 de 1996”, Consejo Superior de la Judicatura Sala Administrativa, artículo 7 1996."]
[137,"170000-V","DIRECCIÓN EJECUTIVA DE ADMINISTRACIÓN JUDICIAL","174000-V","Unidad Informática",{"$nulls":4},"24","INFORMES","24.04","Informes de gestión","Acuerdo No. 74 de 1996 “Por el cual se da cumplimiento al artículo 199 inciso primero de la Ley 270 de 1996”, Consejo Superior de la Judicatura Sala Administrativa, artículo 7 1996."]
[138,"170000-V","DIRECCIÓN EJECUTIVA DE ADMINISTRACIÓN JUDICIAL","174000-V","Unidad Informática",{"$nulls":4},"26","INVENTARIOS","26.02","Inventarios De Maquinaria Y Equipos","Acuerdo No. 74 de 1996 “Por el cual se da cumplimiento al artículo 199 inciso primero de la Ley 270 de 1996”, Consejo Superior de la Judicatura Sala Administrativa, artículo 7 1996."]
[139,"170000-V","DIRECCIÓN EJECUTIVA DE ADMINISTRACIÓN JUDICIAL","174000-V","Unidad Informática",{"$nulls":4},"28","LICENCIAS DE SOFTWARE",null,null,"Acuerdo No. 74 de 1996 “Por el cual se da cumplimiento al artículo 199 inciso primero de la Ley 270 de 1996”, Consejo Superior de la Judicatura Sala Administrativa, artículo 7 1996."]
[140,"170000-V","DIRECCIÓN EJECUTIVA DE ADMINISTRACIÓN JUDICIAL","174000-V","Unidad Informática",{"$nulls":4},"36","PLANES","36.08","Planes Estratégicos de Tecnología","Acuerdo No. 74 de 1996 “Por el cual se da cumplimiento al artículo 199 inciso primero de la Ley 270 de 1996”, Consejo Superior de la Judicatura Sala Administrativa, artículo 7 1996."]
[141,"170000-V","DIRECCIÓN EJECUTIVA DE ADMINISTRACIÓN JUDICIAL","174000-V","Unidad Informática",{"$nulls":4},"42","REGISTROS DE SOPORTE TÉCNICO",null,null,"Acuerdo No. 74 de 1996 “Por el cual se da cumplimiento al artículo 199 inciso primero de la Ley 270 de 1996”, Consejo Superior de la Judicatura Sala Administrativa, artículo 7 1996."]
[142,"170000-V","DIRECCIÓN EJECUTIVA DE ADMINISTRACIÓN JUDICIAL","174000-V","Unidad Informática","174100-V","División de Ejecución Proyectos"]
[143,"170000-V","DIRECCIÓN EJECUTIVA DE ADMINISTRACIÓN JUDICIAL","174000-V","Unidad Informática","174200-V","División de Sistemas de Ingeniería"]
[144,"170000-V","DIRECCIÓN EJECUTIVA DE ADMINISTRACIÓN JUDICIAL","174000-V","Unidad Informática","174300-V","Sección de Soporte Técnico y Logístico"]
[145,"170000-V","DIRECCIÓN EJECUTIVA DE ADMINISTRACIÓN JUDICIAL","175000-V","Unidad de Asistencia Legal ",{"$nulls":4},"01","ACCIONES CONSTITUCIONALES","01.02","Acciones de Tutela","Acuerdo No. 74 de 1996 “Por el cual se da cumplimiento al artículo 199 inciso primero de la Ley 270 de 1996”, Consejo Superior de la Judicatura Sala Administrativa, artículo 7 1996."]
[146,"170000-V","DIRECCIÓN EJECUTIVA DE ADMINISTRACIÓN JUDICIAL","175000-V","Unidad de Asistencia Legal ",{"$nulls":4},12,"COMUNICACIONES OFICIALES ",null,null,"Acuerdo No. 74 de 1996 “Por el cual se da cumplimiento al artículo 199 inciso primero de la Ley 270 de 1996”, Consejo Superior de la Judicatura Sala Administrativa, artículo 7 1996."]
[147,"170000-V","DIRECCIÓN EJECUTIVA DE ADMINISTRACIÓN JUDICIAL","175000-V","Unidad de Asistencia Legal ",{"$nulls":4},"18","DERECHOS DE PETICIÓN",null,null,"Acuerdo No. 74 de 1996 “Por el cual se da cumplimiento al artículo 199 inciso primero de la Ley 270 de 1996”, Consejo Superior de la Judicatura Sala Administrativa, artículo 7 1996."]
[148,"170000-V","DIRECCIÓN EJECUTIVA DE ADMINISTRACIÓN JUDICIAL","175000-V","Unidad de Asistencia Legal ",{"$nulls":4},"24","INFORMES","24.04","Informes de gestión","Acuerdo No. 74 de 1996 “Por el cual se da cumplimiento al artículo 199 inciso primero de la Ley 270 de 1996”, Consejo Superior de la Judicatura Sala Administrativa, artículo 7 1996."]
[149,"170000-V","DIRECCIÓN EJECUTIVA DE ADMINISTRACIÓN JUDICIAL","175000-V","Unidad de Asistencia Legal ","175100-V","Divisón de Procesos"]
[150,"170000-V","DIRECCIÓN EJECUTIVA DE ADMINISTRACIÓN JUDICIAL","175000-V","Unidad de Asistencia Legal ","175200-V","División de Contratos",null,null,"15","CONTRATOS","15.01","Contratos de arrendamiento","Acuerdo No. 74 de 1996 “Por el cual se da cumplimiento al artículo 199 inciso primero de la Ley 270 de 1996”, Consejo Superior de la Judicatura Sala Administrativa, artículo 7 1996."]
[151,"170000-V","DIRECCIÓN EJECUTIVA DE ADMINISTRACIÓN JUDICIAL","175000-V","Unidad de Asistencia Legal ","175200-V","División de Contratos",null,null,"15","CONTRATOS","15.02","Contratos de comodato","Acuerdo No. 74 de 1996 “Por el cual se da cumplimiento al artículo 199 inciso primero de la Ley 270 de 1996”, Consejo Superior de la Judicatura Sala Administrativa, artículo 7 1996."]
[152,"170000-V","DIRECCIÓN EJECUTIVA DE ADMINISTRACIÓN JUDICIAL","175000-V","Unidad de Asistencia Legal ","175200-V","División de Contratos",null,null,"15","CONTRATOS","15.03","Contratos de compraventa","Acuerdo No. 74 de 1996 “Por el cual se da cumplimiento al artículo 199 inciso primero de la Ley 270 de 1996”, Consejo Superior de la Judicatura Sala Administrativa, artículo 7 1996."]
[153,"170000-V","DIRECCIÓN EJECUTIVA DE ADMINISTRACIÓN JUDICIAL","175000-V","Unidad de Asistencia Legal ","175200-V","División de Contratos",null,null,"15","CONTRATOS","15.04","Contratos de interventoría","Acuerdo No. 74 de 1996 “Por el cual se da cumplimiento al artículo 199 inciso primero de la Ley 270 de 1996”, Consejo Superior de la Judicatura Sala Administrativa, artículo 7 1996."]
[154,"170000-V","DIRECCIÓN EJECUTIVA DE ADMINISTRACIÓN JUDICIAL","175000-V","Unidad de Asistencia Legal ","175200-V","División de Contratos",null,null,"15","CONTRATOS","15.05","Contratos de obra","Acuerdo No. 74 de 1996 “Por el cual se da cumplimiento al artículo 199 inciso primero de la Ley 270 de 1996”, Consejo Superior de la Judicatura Sala Administrativa, artículo 7 1996."]
[155,"170000-V","DIRECCIÓN EJECUTIVA DE ADMINISTRACIÓN JUDICIAL","175000-V","Unidad de Asistencia Legal ","175200-V","División de Contratos",null,null,"15","CONTRATOS","15.06","Contratos de permuta","Acuerdo No. 74 de 1996 “Por el cual se da cumplimiento al artículo 199 inciso primero de la Ley 270 de 1996”, Consejo Superior de la Judicatura Sala Administrativa, artículo 7 1996."]
[156,"170000-V","DIRECCIÓN EJECUTIVA DE ADMINISTRACIÓN JUDICIAL","175000-V","Unidad de Asistencia Legal ","175200-V","División de Contratos",null,null,"15","CONTRATOS","15.07","Contratos de prestación de servicios","Acuerdo No. 74 de 1996 “Por el cual se da cumplimiento al artículo 199 inciso primero de la Ley 270 de 1996”, Consejo Superior de la Judicatura Sala Administrativa, artículo 7 1996."]
[157,"170000-V","DIRECCIÓN EJECUTIVA DE ADMINISTRACIÓN JUDICIAL","175000-V","Unidad de Asistencia Legal ","175200-V","División de Contratos",null,null,"15","CONTRATOS","15.08","Contratos de suministro","Acuerdo No. 74 de 1996 “Por el cual se da cumplimiento al artículo 199 inciso primero de la Ley 270 de 1996”, Consejo Superior de la Judicatura Sala Administrativa, artículo 7 1996."]
[158,"170000-V","DIRECCIÓN EJECUTIVA DE ADMINISTRACIÓN JUDICIAL","175000-V","Unidad de Asistencia Legal ","175200-V","División de Contratos",null,null,"16","CONVENIOS","16.01","Convenios interadministrativos","Acuerdo No. 74 de 1996 “Por el cual se da cumplimiento al artículo 199 inciso primero de la Ley 270 de 1996”, Consejo Superior de la Judicatura Sala Administrativa, artículo 7 1996."]
[159,"170000-V","DIRECCIÓN EJECUTIVA DE ADMINISTRACIÓN JUDICIAL","175000-V","Unidad de Asistencia Legal ","175200-V","División de Contratos",null,null,"29","LICITACIONES PUBLICAS",null,null,"Acuerdo No. 74 de 1996 “Por el cual se da cumplimiento al artículo 199 inciso primero de la Ley 270 de 1996”, Consejo Superior de la Judicatura Sala Administrativa, artículo 7 1996."]
[160,"170000-V","DIRECCIÓN EJECUTIVA DE ADMINISTRACIÓN JUDICIAL","175000-V","Unidad de Asistencia Legal ","175300-V","División de Apoyo Legal"]
[161,"170000-V","DIRECCIÓN EJECUTIVA DE ADMINISTRACIÓN JUDICIAL","175000-V","Unidad de Asistencia Legal ","175400-V","Sección de Cobro Coactivo"]
[162,"170000-V","DIRECCIÓN EJECUTIVA DE ADMINISTRACIÓN JUDICIAL","176000-V","Unidad Administrativa",{"$nulls":4},12,"COMUNICACIONES OFICIALES ",null,null,"Acuerdo No. 74 de 1996 “Por el cual se da cumplimiento al artículo 199 inciso primero de la Ley 270 de 1996”, Consejo Superior de la Judicatura Sala Administrativa, artículo 7 1996."]
[163,"170000-V","DIRECCIÓN EJECUTIVA DE ADMINISTRACIÓN JUDICIAL","176000-V","Unidad Administrativa",{"$nulls":4},"24","INFORMES","24.01","Informes a Entes de Control","Acuerdo No. 74 de 1996 “Por el cual se da cumplimiento al artículo 199 inciso primero de la Ley 270 de 1996”, Consejo Superior de la Judicatura Sala Administrativa, artículo 7 1996."]
[164,"170000-V","DIRECCIÓN EJECUTIVA DE ADMINISTRACIÓN JUDICIAL","176000-V","Unidad Administrativa",{"$nulls":4},"24","INFORMES","24.04","Informes de gestión","Acuerdo No. 74 de 1996 “Por el cual se da cumplimiento al artículo 199 inciso primero de la Ley 270 de 1996”, Consejo Superior de la Judicatura Sala Administrativa, artículo 7 1996."]
[165,"170000-V","DIRECCIÓN EJECUTIVA DE ADMINISTRACIÓN JUDICIAL","176000-V","Unidad Administrativa","176100-V","Dirección de la Unidad","176110-V","Sección Correspondencia del Consejo Superior de la Judicatura",12,"COMUNICACIONES OFICIALES ",null,null,"Acuerdo No. 74 de 1996 “Por el cual se da cumplimiento al artículo 199 inciso primero de la Ley 270 de 1996”, Consejo Superior de la Judicatura Sala Administrativa, artículo 7 1996."]
[166,"170000-V","DIRECCIÓN EJECUTIVA DE ADMINISTRACIÓN JUDICIAL","176000-V","Unidad Administrativa","176100-V","Dirección de la Unidad","176110-V","Sección Correspondencia del Consejo Superior de la Judicatura","25","INSTRUMENTOS DE CONTROL DE COMUNICACIONES OFICIALES",null,null,"Acuerdo No. 74 de 1996 “Por el cual se da cumplimiento al artículo 199 inciso primero de la Ley 270 de 1996”, Consejo Superior de la Judicatura Sala Administrativa, artículo 7 1996."]
[167,"170000-V","DIRECCIÓN EJECUTIVA DE ADMINISTRACIÓN JUDICIAL","176000-V","Unidad Administrativa","176100-V","Dirección de la Unidad","176120-V","Sección de Centro de Documentación"]
[168,"170000-V","DIRECCIÓN EJECUTIVA DE ADMINISTRACIÓN JUDICIAL","176000-V","Unidad Administrativa","176100-V","Dirección de la Unidad","176130-V","Sección de Inmuebles y Seguros","02","ACTAS","02.03","Actas De Comité De Bajas","Acuerdo No. 74 de 1996 “Por el cual se da cumplimiento al artículo 199 inciso primero de la Ley 270 de 1996”, Consejo Superior de la Judicatura Sala Administrativa, artículo 7 1996."]
[169,"170000-V","DIRECCIÓN EJECUTIVA DE ADMINISTRACIÓN JUDICIAL","176000-V","Unidad Administrativa","176100-V","Dirección de la Unidad","176130-V","Sección de Inmuebles y Seguros",12,"COMUNICACIONES OFICIALES ",null,null,"Acuerdo No. 74 de 1996 “Por el cual se da cumplimiento al artículo 199 inciso primero de la Ley 270 de 1996”, Consejo Superior de la Judicatura Sala Administrativa, artículo 7 1996."]
[170,"170000-V","DIRECCIÓN EJECUTIVA DE ADMINISTRACIÓN JUDICIAL","176000-V","Unidad Administrativa","176100-V","Dirección de la Unidad","176130-V","Sección de Inmuebles y Seguros","24","INFORMES","24.01","Informes a Entes de Control","Acuerdo No. 74 de 1996 “Por el cual se da cumplimiento al artículo 199 inciso primero de la Ley 270 de 1996”, Consejo Superior de la Judicatura Sala Administrativa, artículo 7 1996."]
[171,"170000-V","DIRECCIÓN EJECUTIVA DE ADMINISTRACIÓN JUDICIAL","176000-V","Unidad Administrativa","176100-V","Dirección de la Unidad","176130-V","Sección de Inmuebles y Seguros","24","INFORMES","24.04","Informes de gestión","Acuerdo No. 74 de 1996 “Por el cual se da cumplimiento al artículo 199 inciso primero de la Ley 270 de 1996”, Consejo Superior de la Judicatura Sala Administrativa, artículo 7 1996."]
[172,"170000-V","DIRECCIÓN EJECUTIVA DE ADMINISTRACIÓN JUDICIAL","176000-V","Unidad Administrativa","176100-V","Dirección de la Unidad","176130-V","Sección de Inmuebles y Seguros","26","INVENTARIOS","26.01","Inventarios de elementos devolutivos","Acuerdo No. 74 de 1996 “Por el cual se da cumplimiento al artículo 199 inciso primero de la Ley 270 de 1996”, Consejo Superior de la Judicatura Sala Administrativa, artículo 7 1996."]
[173,"170000-V","DIRECCIÓN EJECUTIVA DE ADMINISTRACIÓN JUDICIAL","176000-V","Unidad Administrativa","176100-V","Dirección de la Unidad","176130-V","Sección de Inmuebles y Seguros","37","PROCESOS","37.01","Procesos de reclamación de siniestros","Acuerdo No. 74 de 1996 “Por el cual se da cumplimiento al artículo 199 inciso primero de la Ley 270 de 1996”, Consejo Superior de la Judicatura Sala Administrativa, artículo 7 1996."]
[174,"170000-V","DIRECCIÓN EJECUTIVA DE ADMINISTRACIÓN JUDICIAL","176000-V","Unidad Administrativa","176200-V","División de Servicios Administrativos","176210-V","Sección de Compras",12,"COMUNICACIONES OFICIALES ",null,null,"Acuerdo No. 74 de 1996 “Por el cual se da cumplimiento al artículo 199 inciso primero de la Ley 270 de 1996”, Consejo Superior de la Judicatura Sala Administrativa, artículo 7 1996."]
[175,"170000-V","DIRECCIÓN EJECUTIVA DE ADMINISTRACIÓN JUDICIAL","176000-V","Unidad Administrativa","176200-V","División de Servicios Administrativos","176210-V","Sección de Compras","24","INFORMES","24.04","Informes de gestión","Acuerdo No. 74 de 1996 “Por el cual se da cumplimiento al artículo 199 inciso primero de la Ley 270 de 1996”, Consejo Superior de la Judicatura Sala Administrativa, artículo 7 1996."]
[176,"170000-V","DIRECCIÓN EJECUTIVA DE ADMINISTRACIÓN JUDICIAL","176000-V","Unidad Administrativa","176200-V","División de Servicios Administrativos","176210-V","Sección de Compras","33","ORDENES DE COMPRA",null,null,"Acuerdo No. 74 de 1996 “Por el cual se da cumplimiento al artículo 199 inciso primero de la Ley 270 de 1996”, Consejo Superior de la Judicatura Sala Administrativa, artículo 7 1996."]
[177,"170000-V","DIRECCIÓN EJECUTIVA DE ADMINISTRACIÓN JUDICIAL","176000-V","Unidad Administrativa","176200-V","División de Servicios Administrativos","176210-V","Sección de Compras","36","PLANES","36.05","Planes de Compras","Acuerdo No. 74 de 1996 “Por el cual se da cumplimiento al artículo 199 inciso primero de la Ley 270 de 1996”, Consejo Superior de la Judicatura Sala Administrativa, artículo 7 1996."]
[178,"170000-V","DIRECCIÓN EJECUTIVA DE ADMINISTRACIÓN JUDICIAL","176000-V","Unidad Administrativa","176200-V","División de Servicios Administrativos","176220-V","Sección de Servicios Técnicos",12,"COMUNICACIONES OFICIALES ",null,null,"Acuerdo No. 74 de 1996 “Por el cual se da cumplimiento al artículo 199 inciso primero de la Ley 270 de 1996”, Consejo Superior de la Judicatura Sala Administrativa, artículo 7 1996."]
[179,"170000-V","DIRECCIÓN EJECUTIVA DE ADMINISTRACIÓN JUDICIAL","176000-V","Unidad Administrativa","176200-V","División de Servicios Administrativos","176220-V","Sección de Servicios Técnicos","18","DERECHOS DE PETICIÓN",null,null,"Acuerdo No. 74 de 1996 “Por el cual se da cumplimiento al artículo 199 inciso primero de la Ley 270 de 1996”, Consejo Superior de la Judicatura Sala Administrativa, artículo 7 1996."]
[180,"170000-V","DIRECCIÓN EJECUTIVA DE ADMINISTRACIÓN JUDICIAL","176000-V","Unidad Administrativa","176200-V","División de Servicios Administrativos","176220-V","Sección de Servicios Técnicos","21","HISTORIALES DE MAQUINARIA Y EQUIPOS",null,null,"Acuerdo No. 74 de 1996 “Por el cual se da cumplimiento al artículo 199 inciso primero de la Ley 270 de 1996”, Consejo Superior de la Judicatura Sala Administrativa, artículo 7 1996."]
[181,"170000-V","DIRECCIÓN EJECUTIVA DE ADMINISTRACIÓN JUDICIAL","176000-V","Unidad Administrativa","176200-V","División de Servicios Administrativos","176220-V","Sección de Servicios Técnicos","24","INFORMES","24.04","Informes de gestión","Acuerdo No. 74 de 1996 “Por el cual se da cumplimiento al artículo 199 inciso primero de la Ley 270 de 1996”, Consejo Superior de la Judicatura Sala Administrativa, artículo 7 1996."]
[182,"170000-V","DIRECCIÓN EJECUTIVA DE ADMINISTRACIÓN JUDICIAL","176000-V","Unidad Administrativa","176200-V","División de Servicios Administrativos","176220-V","Sección de Servicios Técnicos","35","ORDENES DE SERVICIO",null,null,"Acuerdo No. 74 de 1996 “Por el cual se da cumplimiento al artículo 199 inciso primero de la Ley 270 de 1996”, Consejo Superior de la Judicatura Sala Administrativa, artículo 7 1996."]
[183,"170000-V","DIRECCIÓN EJECUTIVA DE ADMINISTRACIÓN JUDICIAL","176000-V","Unidad Administrativa","176200-V","División de Servicios Administrativos","176230-V","Sección de Transportes",12,"COMUNICACIONES OFICIALES ",null,null,"Acuerdo No. 74 de 1996 “Por el cual se da cumplimiento al artículo 199 inciso primero de la Ley 270 de 1996”, Consejo Superior de la Judicatura Sala Administrativa, artículo 7 1996."]
[184,"170000-V","DIRECCIÓN EJECUTIVA DE ADMINISTRACIÓN JUDICIAL","176000-V","Unidad Administrativa","176200-V","División de Servicios Administrativos","176230-V","Sección de Transportes","18","DERECHOS DE PETICIÓN",null,null,"Acuerdo No. 74 de 1996 “Por el cual se da cumplimiento al artículo 199 inciso primero de la Ley 270 de 1996”, Consejo Superior de la Judicatura Sala Administrativa, artículo 7 1996."]
[185,"170000-V","DIRECCIÓN EJECUTIVA DE ADMINISTRACIÓN JUDICIAL","176000-V","Unidad Administrativa","176200-V","División de Servicios Administrativos","176230-V","Sección de Transportes","22","HISTORIALES DE VEHÍCULOS",null,null,"Acuerdo No. 74 de 1996 “Por el cual se da cumplimiento al artículo 199 inciso primero de la Ley 270 de 1996”, Consejo Superior de la Judicatura Sala Administrativa, artículo 7 1996."]
[186,"170000-V","DIRECCIÓN EJECUTIVA DE ADMINISTRACIÓN JUDICIAL","176000-V","Unidad Administrativa","176200-V","División de Servicios Administrativos","176230-V","Sección de Transportes","24","INFORMES","24.04","Informes de gestión","Acuerdo No. 74 de 1996 “Por el cual se da cumplimiento al artículo 199 inciso primero de la Ley 270 de 1996”, Consejo Superior de la Judicatura Sala Administrativa, artículo 7 1996."]
[187,"170000-V","DIRECCIÓN EJECUTIVA DE ADMINISTRACIÓN JUDICIAL","176000-V","Unidad Administrativa","176200-V","División de Servicios Administrativos","176230-V","Sección de Transportes","26","INVENTARIOS","26.04","Inventarios Parque Automotor","Acuerdo No. 74 de 1996 “Por el cual se da cumplimiento al artículo 199 inciso primero de la Ley 270 de 1996”, Consejo Superior de la Judicatura Sala Administrativa, artículo 7 1996."]
[188,"170000-V","DIRECCIÓN EJECUTIVA DE ADMINISTRACIÓN JUDICIAL","176000-V","Unidad Administrativa","176300-V","División de Almacen e Inventarios",null,null,"02","ACTAS","02.08","Actas de egreso de almacén","Acuerdo No. 74 de 1996 “Por el cual se da cumplimiento al artículo 199 inciso primero de la Ley 270 de 1996”, Consejo Superior de la Judicatura Sala Administrativa, artículo 7 1996."]
[189,"170000-V","DIRECCIÓN EJECUTIVA DE ADMINISTRACIÓN JUDICIAL","176000-V","Unidad Administrativa","176300-V","División de Almacen e Inventarios",null,null,"02","ACTAS","02.09","Actas de ingreso de almacén","Acuerdo No. 74 de 1996 “Por el cual se da cumplimiento al artículo 199 inciso primero de la Ley 270 de 1996”, Consejo Superior de la Judicatura Sala Administrativa, artículo 7 1996."]
[190,"170000-V","DIRECCIÓN EJECUTIVA DE ADMINISTRACIÓN JUDICIAL","176000-V","Unidad Administrativa","176300-V","División de Almacen e Inventarios",null,null,12,"COMUNICACIONES OFICIALES ",null,null,"Acuerdo No. 74 de 1996 “Por el cual se da cumplimiento al artículo 199 inciso primero de la Ley 270 de 1996”, Consejo Superior de la Judicatura Sala Administrativa, artículo 7 1996."]
[191,"170000-V","DIRECCIÓN EJECUTIVA DE ADMINISTRACIÓN JUDICIAL","176000-V","Unidad Administrativa","176300-V","División de Almacen e Inventarios",null,null,"26","INVENTARIOS","26.01","Inventarios de elementos devolutivos","Acuerdo No. 74 de 1996 “Por el cual se da cumplimiento al artículo 199 inciso primero de la Ley 270 de 1996”, Consejo Superior de la Judicatura Sala Administrativa, artículo 7 1996."]
[192,"170000-V","DIRECCIÓN EJECUTIVA DE ADMINISTRACIÓN JUDICIAL","177000-V","Unidad de Infraestructura Física",{"$nulls":4},"26","INVENTARIOS","26.03","Inventarios Generales","Acuerdo No. 74 de 1996 “Por el cual se da cumplimiento al artículo 199 inciso primero de la Ley 270 de 1996”, Consejo Superior de la Judicatura Sala Administrativa, artículo 7 1996."]
[193,"170000-V","DIRECCIÓN EJECUTIVA DE ADMINISTRACIÓN JUDICIAL","177000-V","Unidad de Infraestructura Física",{"$nulls":4},"37","PROCESOS","37.01","Procesos de reclamación de siniestros","Acuerdo No. 74 de 1996 “Por el cual se da cumplimiento al artículo 199 inciso primero de la Ley 270 de 1996”, Consejo Superior de la Judicatura Sala Administrativa, artículo 7 1996."]
[194,"170000-V","DIRECCIÓN EJECUTIVA DE ADMINISTRACIÓN JUDICIAL",null,"Unidad de Infraestructura Física","177100-V","División de Diseño"]
[195,"170000-V","DIRECCIÓN EJECUTIVA DE ADMINISTRACIÓN JUDICIAL",null,"Unidad de Infraestructura Física","177200-V","División de Supervisión y Ejecución"]
[196,"170000-V","DIRECCIÓN EJECUTIVA DE ADMINISTRACIÓN JUDICIAL","177000-V","Unidad de Infraestructura Física","177300-V","División de Construcción y Mantenimiento"]
[197,"170000-V","DIRECCIÓN EJECUTIVA DE ADMINISTRACIÓN JUDICIAL","178300-V","Oficina de Comunicaciones",{"$nulls":4},"36","PLANES","36.06","Planes de Comunicaciones","Acuerdo No. 74 de 1996 “Por el cual se da cumplimiento al artículo 199 inciso primero de la Ley 270 de 1996”, Consejo Superior de la Judicatura Sala Administrativa, artículo 7 1996."]
[198,"170000-V","DIRECCIÓN EJECUTIVA DE ADMINISTRACIÓN JUDICIAL","178300-V","Oficina de Comunicaciones",{"$nulls":4},"41","PUBLICACIONES INSTITUCIONALES",null,null,"Acuerdo No. 74 de 1996 “Por el cual se da cumplimiento al artículo 199 inciso primero de la Ley 270 de 1996”, Consejo Superior de la Judicatura Sala Administrativa, artículo 7 1996."]

{"sheet":"Control de Versiones ","index":2,"n_rows":3,"n_cols":4,"rows_kept":3,"merged":[[1,0,1,3]]}
[]
["Control de Versiones "]
["Número de Revisión","Fecha","Sección ","Cambios Realizados"]